Workbook

Sheet Roster
A1: NGNL 2019 Summer Season
A2: Player # | B2: Last Name | C2: First Name | D2: Category | E2: Sex | G2: INSTRUCTIONS:
A3: 1 | B3: Arias | C3: Luis | D3: N | E3: M | G3: Follow the examples and enter the names of any players added to the roster. If anyone needs to be removed, it should be done BEFORE entering any game data for a season. Add new players by replacing the generic "Player" entries with the new player.
A4: 2 | B4: Castello | C4: Erin | D4: J | E4: F
A5: 3 | B5: Huls | C5: Josh | D5: N | E5: M
A6: 4 | B6: McKinney | C6: Colin | D6: J | E6: M
A7: 5 | B7: Padams | C7: Jordan | D7: J | E7: M
A8: 6 | B8: Patel | C8: Saagar | D8: J | E8: M
A9: 7 | B9: Shelton | C9: Jacob | D9: J | E9: M
A10: 8 | B10: Stegman | C10: Matt | D10: J | E10: M | G10: on roster, but didn't play summer season
A11: 9 | B11: Stragier | C11: Michael | D11: J | E11: M
A12: 10 | B12: Vicic | C12: Mike | D12: J | E12: M
A13: 11 | B13: Vogel | C13: Amy | D13: J | E13: F | G13: on roster, but didn't play summer season
A14: 12 | B14: Waldman | C14: Jeff | D14: J | E14: M
A15: 13 | B15: Sereno | C15: Gina | D15: J | E15: F
A16: 14 | B16: Saxton | C16: Kimberly | D16: J | E16: F
A17: 15 | B17: Martin | C17: Max | D17: J | E17: M
A18: 16 | B18: Gaston | C18: Andy | D18: J | E18: M
A19: 17 | B19: Lee | C19: Jonathan | D19: J | E19: M | G19: on roster, but didn't play summer season
A20: 18 | B20: Stetson | C20: Michael | D20: J | E20: M | G20: on roster, but didn't play summer season
A21: 19 | B21: Player | C21: T
A22: 20 | B22: Player | C22: U
A23: 21 | B23: Player | C23: V
A24: 22 | B24: Player | C24: W
A25: 23 | B25: Player | C25: X
A26: 24 | B26: Player | C26: Y
A27: 25 | B27: Player | C27: Z

Sheet Results
A1: =Roster!A1&" Game Results" -> NGNL 2019 Summer Season Game Results
A2: Game # | B2: Opponent | C2: Result | D2: NGNL | E2: Opponent
A3: 1 | B3: vs. Sharks | C3: =IF(D3="","",IF(D3=E3,"T",IF(D3>E3,"W","L"))) -> L | D3: 9 | E3: 22
A4: 2 | B4: vs. Space Force | C4: W | D4: 19 | E4: 17
A5: 3 | B5: at Scared Hitless | C5: W | D5: 29 | E5: 26
A6: 4 | B6: vs AFOS | C6: L | D6: 24 | E6: 27
A7: 5 | B7: at Dawgs | C7: L | D7: 11 | E7: 13
A8: 6 | B8: at Titan-1UP | C8: L | D8: 3 | E8: 18
A9: 7 | B9: vs 5th Base | C9: L | D9: 18 | E9: 23
A10: 8
A11: 9
A12: 10
A15: INSTRUCTIONS:
A16: Enter the opponent for each game. Use "at" for away games and "vs" for home games. Example, for a home game against the Dawgs, type "vs Dawgs". Enter the score for each team in the appropriate box. The Result is computed automatically.

Sheet Game1
A1: =Roster!A1&" NGNL "&Results!B3&" "&Results!C3&" "&Results!D3&"-"&Results!E3 -> NGNL 2019 Summer Season NGNL vs. Sharks L 9-22
A2: Rank | B2: Name | C2: At Game? | D2: AB | E2: 1B | F2: 2B | G2: 3B | H2: HR | I2: Hits | J2: Runs | K2: RBIs | L2: BB | M2: SO | N2: AVG | O2: SLG | P2: OBA | Q2: OPS | R2: PA | S2: TB | T2: SF
A3: 1 | B3: =Roster!B3&", "&LEFT(Roster!C3,1) -> Arias, L | C3: 1 | D3: =R3-(T3+L3) -> 3 | E3: 1 | F3: 1 | G3: 0 | H3: 0 | I3: =E3+F3+G3+H3 -> 2 | J3: 2 | K3: 1 | L3: 0 | M3: 0 | N3: =IF(D3>0,(E3+F3+G3+H3)/D3,0) -> 0.6666666667 | O3: =IF(D3>0,S3/D3,0) -> 1 | P3: =IF(R3>0,(E3+F3+G3+H3+L3)/R3,0) -> 0.6666666667 | Q3: =O3+P3 -> 1.666666667 | R3: 3 | S3: =(E3+F3*2+G3*3+H3*4) -> 3 | T3: 0
A4: 2 | B4: =Roster!B4&", "&LEFT(Roster!C4,1) -> Castello, E | C4: 1 | D4: 3 | E4: 1 | F4: 0 | G4: 0 | H4: 0 | I4: 1 | J4: 0 | K4: 1 | L4: 0 | M4: 0 | N4: 0.3333333333 | O4: 0.3333333333 | P4: 0.3333333333 | Q4: 0.6666666667 | R4: 3 | S4: 1 | T4: 0
A5: 3 | B5: =Roster!B5&", "&LEFT(Roster!C5,1) -> Huls, J | C5: 1 | D5: 4 | E5: 3 | F5: 0 | G5: 0 | H5: 0 | I5: 3 | J5: 1 | K5: 1 | L5: 0 | M5: 0 | N5: 0.75 | O5: 0.75 | P5: 0.75 | Q5: 1.5 | R5: 4 | S5: 3 | T5: 0
A6: 4 | B6: =Roster!B6&", "&LEFT(Roster!C6,1) -> McKinney, C | C6: 1 | D6: 4 | E6: 2 | F6: 0 | G6: 0 | H6: 0 | I6: 2 | J6: 1 | K6: 1 | L6: 0 | M6: 0 | N6: 0.5 | O6: 0.5 | P6: 0.5 | Q6: 1 | R6: 4 | S6: 2 | T6: 0
A7: 5 | B7: =Roster!B7&", "&LEFT(Roster!C7,1) -> Padams, J | D7: 0 | I7: 0 | N7: 0 | O7: 0 | P7: 0 | Q7: 0 | S7: 0
A8: 6 | B8: =Roster!B8&", "&LEFT(Roster!C8,1) -> Patel, S | C8: 1 | D8: 4 | E8: 2 | F8: 0 | G8: 0 | H8: 0 | I8: 2 | J8: 1 | K8: 1 | L8: 0 | M8: 0 | N8: 0.5 | O8: 0.5 | P8: 0.5 | Q8: 1 | R8: 4 | S8: 2 | T8: 0
A9: 7 | B9: =Roster!B9&", "&LEFT(Roster!C9,1) -> Shelton, J | C9: 1 | D9: 4 | E9: 0 | F9: 0 | G9: 0 | H9: 0 | I9: 0 | J9: 0 | K9: 1 | L9: 0 | M9: 0 | N9: 0 | O9: 0 | P9: 0 | Q9: 0 | R9: 4 | S9: 0 | T9: 0
A10: 8 | B10: =Roster!B10&", "&LEFT(Roster!C10,1) -> Stegman, M | D10: 0 | I10: 0 | N10: 0 | O10: 0 | P10: 0 | Q10: 0 | S10: 0
A11: 9 | B11: =Roster!B11&", "&LEFT(Roster!C11,1) -> Stragier, M | C11: 1 | D11: 3 | E11: 0 | F11: 0 | G11: 1 | H11: 0 | I11: 1 | J11: 1 | K11: 1 | L11: 0 | M11: 0 | N11: 0.3333333333 | O11: 1 | P11: 0.25 | Q11: 1.25 | R11: 4 | S11: 3 | T11: 1
A12: 10 | B12: =Roster!B12&", "&LEFT(Roster!C12,1) -> Vicic, M | C12: 1 | D12: 2 | E12: 1 | F12: 0 | G12: 0 | H12: 0 | I12: 1 | J12: 2 | K12: 0 | L12: 1 | M12: 0 | N12: 0.5 | O12: 0.5 | P12: 0.6666666667 | Q12: 1.166666667 | R12: 3 | S12: 1 | T12: 0
A13: 11 | B13: =Roster!B13&", "&LEFT(Roster!C13,1) -> Vogel, A | D13: 0 | I13: 0 | N13: 0 | O13: 0 | P13: 0 | Q13: 0 | S13: 0
A14: 12 | B14: =Roster!B14&", "&LEFT(Roster!C14,1) -> Waldman, J | C14: 1 | D14: 4 | E14: 1 | F14: 0 | G14: 1 | H14: 0 | I14: 2 | J14: 1 | K14: 2 | L14: 0 | M14: 0 | N14: 0.5 | O14: 1 | P14: 0.5 | Q14: 1.5 | R14: 4 | S14: 4 | T14: 0
A15: 13 | B15: =Roster!B15&", "&LEFT(Roster!C15,1) -> Sereno, G | D15: 0 | I15: 0 | N15: 0 | O15: 0 | P15: 0 | Q15: 0 | S15: 0
A16: 14 | B16: =Roster!B16&", "&LEFT(Roster!C16,1) -> Saxton, K | D16: 0 | I16: 0 | N16: 0 | O16: 0 | P16: 0 | Q16: 0 | S16: 0
A17: 15 | B17: =Roster!B17&", "&LEFT(Roster!C17,1) -> Martin, M | D17: 0 | I17: 0 | N17: 0 | O17: 0 | P17: 0 | Q17: 0 | S17: 0
A18: 16 | B18: =Roster!B18&", "&LEFT(Roster!C18,1) -> Gaston, A | D18: 0 | I18: 0 | N18: 0 | O18: 0 | P18: 0 | Q18: 0 | S18: 0
A19: 17 | B19: =Roster!B19&", "&LEFT(Roster!C19,1) -> Lee, J | D19: 0 | I19: 0 | N19: 0 | O19: 0 | P19: 0 | Q19: 0 | S19: 0
A20: 18 | B20: =Roster!B20&", "&LEFT(Roster!C20,1) -> Stetson, M | D20: 0 | I20: 0 | N20: 0 | O20: 0 | P20: 0 | Q20: 0 | S20: 0
A21: 19 | B21: =Roster!B21&", "&LEFT(Roster!C21,1) -> Player, T | D21: 0 | I21: 0 | N21: 0 | O21: 0 | P21: 0 | Q21: 0 | S21: 0
A22: 20 | B22: =Roster!B22&", "&LEFT(Roster!C22,1) -> Player, U | D22: 0 | I22: 0 | N22: 0 | O22: 0 | P22: 0 | Q22: 0 | S22: 0
A23: 21 | B23: =Roster!B23&", "&LEFT(Roster!C23,1) -> Player, V | D23: 0 | I23: 0 | N23: 0 | O23: 0 | P23: 0 | Q23: 0 | S23: 0
A24: 22 | B24: =Roster!B24&", "&LEFT(Roster!C24,1) -> Player, W | D24: 0 | I24: 0 | N24: 0 | O24: 0 | P24: 0 | Q24: 0 | S24: 0
A25: 23 | B25: =Roster!B25&", "&LEFT(Roster!C25,1) -> Player, X | D25: 0 | I25: 0 | N25: 0 | O25: 0 | P25: 0 | Q25: 0 | S25: 0
A26: 24 | B26: =Roster!B26&", "&LEFT(Roster!C26,1) -> Player, Y | D26: 0 | I26: 0 | N26: 0 | O26: 0 | P26: 0 | Q26: 0 | S26: 0
A27: 25 | B27: =Roster!B27&", "&LEFT(Roster!C27,1) -> Player, Z | D27: 0 | I27: 0 | N27: 0 | O27: 0 | P27: 0 | Q27: 0 | S27: 0
B28: =IF(C28>0,1,0) -> 1 | C28: =SUM(C3:C27) -> 9 | D28: 31 | E28: 11 | F28: 1 | G28: 2 | H28: 0 | I28: 14 | J28: 9 | K28: 9 | L28: 1 | M28: 0 | N28: =IF(C28>0,SUM(N3:N27)/C28,0) -> 0.4537037037 | O28: =IF(C28>0,SUM(O3:O27)/C28,0) -> 0.6203703704 | P28: =IF(C28>0,SUM(P3:P27)/C28,0) -> 0.462962963 | Q28: =IF(C28>0,SUM(Q3:Q27)/C28,0) -> 1.083333333 | R28: =SUM(R3:R27) -> 33 | S28: =SUM(S3:S27) -> 19 | T28: =SUM(T3:T27) -> 1

Sheet Game2
A1: =Roster!A1&" NGNL "&Results!B4&" "&Results!C4&" "&Results!D4&"-"&Results!E4 -> NGNL 2019 Summer Season NGNL vs. Space Force W 19-17
A2: Rank | B2: Name | C2: At Game? | D2: AB | E2: 1B | F2: 2B | G2: 3B | H2: HR | I2: Hits | J2: Runs | K2: RBIs | L2: BB | M2: SO | N2: AVG | O2: SLG | P2: OBA | Q2: OPS | R2: PA | S2: TB | T2: SF
A3: 1 | B3: =Roster!B3&", "&LEFT(Roster!C3,1) -> Arias, L | C3: 1 | D3: =R3-(T3+L3) -> 4 | E3: 3 | F3: 0 | G3: 0 | H3: 0 | I3: =E3+F3+G3+H3 -> 3 | J3: 2 | K3: 0 | L3: 0 | M3: 0 | N3: =IF(D3>0,(E3+F3+G3+H3)/D3,0) -> 0.75 | O3: =IF(D3>0,S3/D3,0) -> 0.75 | P3: =IF(R3>0,(E3+F3+G3+H3+L3)/R3,0) -> 0.75 | Q3: =O3+P3 -> 1.5 | R3: 4 | S3: =(E3+F3*2+G3*3+H3*4) -> 3 | T3: 0
A4: 2 | B4: =Roster!B4&", "&LEFT(Roster!C4,1) -> Castello, E | C4: 1 | D4: 3 | E4: 2 | F4: 0 | G4: 0 | H4: 0 | I4: 2 | J4: 3 | K4: 0 | L4: 1 | M4: 0 | N4: 0.6666666667 | O4: 0.6666666667 | P4: 0.75 | Q4: 1.416666667 | R4: 4 | S4: 2 | T4: 0
A5: 3 | B5: =Roster!B5&", "&LEFT(Roster!C5,1) -> Huls, J | C5: 1 | D5: 5 | E5: 3 | F5: 0 | G5: 1 | H5: 0 | I5: 4 | J5: 4 | K5: 4 | L5: 0 | M5: 0 | N5: 0.8 | O5: 1.2 | P5: 0.8 | Q5: 2 | R5: 5 | S5: 6 | T5: 0
A6: 4 | B6: =Roster!B6&", "&LEFT(Roster!C6,1) -> McKinney, C | C6: 1 | D6: 3 | E6: 0 | F6: 0 | G6: 1 | H6: 0 | I6: 1 | J6: 3 | K6: 1 | L6: 2 | M6: 0 | N6: 0.3333333333 | O6: 1 | P6: 0.6 | Q6: 1.6 | R6: 5 | S6: 3 | T6: 0
A7: 5 | B7: =Roster!B7&", "&LEFT(Roster!C7,1) -> Padams, J | D7: 0 | I7: 0 | N7: 0 | O7: 0 | P7: 0 | Q7: 0 | S7: 0
A8: 6 | B8: =Roster!B8&", "&LEFT(Roster!C8,1) -> Patel, S | C8: 1 | D8: 4 | E8: 2 | F8: 2 | G8: 0 | H8: 0 | I8: 4 | J8: 4 | K8: 5 | L8: 1 | M8: 0 | N8: 1 | O8: 1.5 | P8: 1 | Q8: 2.5 | R8: 5 | S8: 6 | T8: 0
A9: 7 | B9: =Roster!B9&", "&LEFT(Roster!C9,1) -> Shelton, J | C9: 1 | D9: 1 | E9: 1 | F9: 0 | G9: 0 | H9: 0 | I9: 1 | J9: 1 | K9: 1 | L9: 3 | N9: 1 | O9: 1 | P9: 1 | Q9: 2 | R9: 4 | S9: 1 | T9: 0
A10: 8 | B10: =Roster!B10&", "&LEFT(Roster!C10,1) -> Stegman, M | D10: 0 | I10: 0 | N10: 0 | O10: 0 | P10: 0 | Q10: 0 | S10: 0
A11: 9 | B11: =Roster!B11&", "&LEFT(Roster!C11,1) -> Stragier, M | C11: 1 | D11: 3 | E11: 1 | F11: 1 | G11: 0 | H11: 0 | I11: 2 | J11: 1 | K11: 1 | L11: 1 | M11: 0 | N11: 0.6666666667 | O11: 1 | P11: 0.6 | Q11: 1.6 | R11: 5 | S11: 3 | T11: 1
A12: 10 | B12: =Roster!B12&", "&LEFT(Roster!C12,1) -> Vicic, M | C12: 1 | D12: 3 | E12: 2 | F12: 0 | G12: 0 | H12: 0 | I12: 2 | J12: 0 | K12: 2 | L12: 1 | M12: 0 | N12: 0.6666666667 | O12: 0.6666666667 | P12: 0.75 | Q12: 1.416666667 | R12: 4 | S12: 2 | T12: 0
A13: 11 | B13: =Roster!B13&", "&LEFT(Roster!C13,1) -> Vogel, A | D13: 0 | I13: 0 | N13: 0 | O13: 0 | P13: 0 | Q13: 0 | S13: 0
A14: 12 | B14: =Roster!B14&", "&LEFT(Roster!C14,1) -> Waldman, J | C14: 1 | D14: 4 | E14: 1 | F14: 2 | G14: 0 | H14: 0 | I14: 3 | J14: 1 | K14: 5 | L14: 1 | M14: 0 | N14: 0.75 | O14: 1.25 | P14: 0.8 | Q14: 2.05 | R14: 5 | S14: 5 | T14: 0
A15: 13 | B15: =Roster!B15&", "&LEFT(Roster!C15,1) -> Sereno, G | D15: 0 | I15: 0 | N15: 0 | O15: 0 | P15: 0 | Q15: 0 | S15: 0
A16: 14 | B16: =Roster!B16&", "&LEFT(Roster!C16,1) -> Saxton, K | D16: 0 | I16: 0 | N16: 0 | O16: 0 | P16: 0 | Q16: 0 | S16: 0
A17: 15 | B17: =Roster!B17&", "&LEFT(Roster!C17,1) -> Martin, M | D17: 0 | I17: 0 | N17: 0 | O17: 0 | P17: 0 | Q17: 0 | S17: 0
A18: 16 | B18: =Roster!B18&", "&LEFT(Roster!C18,1) -> Gaston, A | D18: 0 | I18: 0 | N18: 0 | O18: 0 | P18: 0 | Q18: 0 | S18: 0
A19: 17 | B19: =Roster!B19&", "&LEFT(Roster!C19,1) -> Lee, J | D19: 0 | I19: 0 | N19: 0 | O19: 0 | P19: 0 | Q19: 0 | S19: 0
A20: 18 | B20: =Roster!B20&", "&LEFT(Roster!C20,1) -> Stetson, M | D20: 0 | I20: 0 | N20: 0 | O20: 0 | P20: 0 | Q20: 0 | S20: 0
A21: 19 | B21: =Roster!B21&", "&LEFT(Roster!C21,1) -> Player, T | D21: 0 | I21: 0 | N21: 0 | O21: 0 | P21: 0 | Q21: 0 | S21: 0
A22: 20 | B22: =Roster!B22&", "&LEFT(Roster!C22,1) -> Player, U | D22: 0 | I22: 0 | N22: 0 | O22: 0 | P22: 0 | Q22: 0 | S22: 0
A23: 21 | B23: =Roster!B23&", "&LEFT(Roster!C23,1) -> Player, V | D23: 0 | I23: 0 | N23: 0 | O23: 0 | P23: 0 | Q23: 0 | S23: 0
A24: 22 | B24: =Roster!B24&", "&LEFT(Roster!C24,1) -> Player, W | D24: 0 | I24: 0 | N24: 0 | O24: 0 | P24: 0 | Q24: 0 | S24: 0
A25: 23 | B25: =Roster!B25&", "&LEFT(Roster!C25,1) -> Player, X | D25: 0 | I25: 0 | N25: 0 | O25: 0 | P25: 0 | Q25: 0 | S25: 0
A26: 24 | B26: =Roster!B26&", "&LEFT(Roster!C26,1) -> Player, Y | D26: 0 | I26: 0 | N26: 0 | O26: 0 | P26: 0 | Q26: 0 | S26: 0
A27: 25 | B27: =Roster!B27&", "&LEFT(Roster!C27,1) -> Player, Z | D27: 0 | I27: 0 | N27: 0 | O27: 0 | P27: 0 | Q27: 0 | S27: 0
B28: =IF(C28>0,1,0) -> 1 | C28: =SUM(C3:C27) -> 9 | D28: 30 | E28: 15 | F28: 5 | G28: 2 | H28: 0 | I28: 22 | J28: 19 | K28: 19 | L28: 10 | M28: 0 | N28: =IF(C28>0,SUM(N3:N27)/C28,0) -> 0.737037037 | O28: =IF(C28>0,SUM(O3:O27)/C28,0) -> 1.003703704 | P28: =IF(C28>0,SUM(P3:P27)/C28,0) -> 0.7833333333 | Q28: =IF(C28>0,SUM(Q3:Q27)/C28,0) -> 1.787037037 | R28: =SUM(R3:R27) -> 41 | S28: =SUM(S3:S27) -> 31 | T28: =SUM(T3:T27) -> 1

Sheet Game3
A1: =Roster!A1&" NGNL "&Results!B5&" "&Results!C5&" "&Results!D5&"-"&Results!E5 -> NGNL 2019 Summer Season NGNL at Scared Hitless W 29-26
A2: Rank | B2: Name | C2: At Game? | D2: AB | E2: 1B | F2: 2B | G2: 3B | H2: HR | I2: Hits | J2: Runs | K2: RBIs | L2: BB | M2: SO | N2: AVG | O2: SLG | P2: OBA | Q2: OPS | R2: PA | S2: TB | T2: SF
A3: 1 | B3: =Roster!B3&", "&LEFT(Roster!C3,1) -> Arias, L | C3: 1 | D3: =R3-(T3+L3) -> 5 | E3: 2 | F3: 3 | G3: 0 | H3: 0 | I3: =E3+F3+G3+H3 -> 5 | J3: 5 | K3: 1 | L3: 0 | M3: 0 | N3: =IF(D3>0,(E3+F3+G3+H3)/D3,0) -> 1 | O3: =IF(D3>0,S3/D3,0) -> 1.6 | P3: =IF(R3>0,(E3+F3+G3+H3+L3)/R3,0) -> 1 | Q3: =O3+P3 -> 2.6 | R3: 5 | S3: =(E3+F3*2+G3*3+H3*4) -> 8 | T3: 0
A4: 2 | B4: =Roster!B4&", "&LEFT(Roster!C4,1) -> Castello, E | C4: 1 | D4: 4 | E4: 1 | F4: 0 | G4: 0 | H4: 0 | I4: 1 | J4: 2 | K4: 1 | L4: 1 | M4: 0 | N4: 0.25 | O4: 0.25 | P4: 0.4 | Q4: 0.65 | R4: 5 | S4: 1 | T4: 0
A5: 3 | B5: =Roster!B5&", "&LEFT(Roster!C5,1) -> Huls, J | C5: 1 | D5: 5 | E5: 2 | F5: 1 | G5: 0 | H5: 2 | I5: 5 | J5: 4 | K5: 9 | L5: 0 | M5: 0 | N5: 1 | O5: 2.4 | P5: 1 | Q5: 3.4 | R5: 5 | S5: 12 | T5: 0
A6: 4 | B6: =Roster!B6&", "&LEFT(Roster!C6,1) -> McKinney, C | C6: 1 | D6: 5 | E6: 2 | F6: 0 | G6: 0 | H6: 0 | I6: 2 | J6: 1 | K6: 1 | L6: 0 | M6: 1 | N6: 0.4 | O6: 0.4 | P6: 0.4 | Q6: 0.8 | R6: 5 | S6: 2 | T6: 0
A7: 5 | B7: =Roster!B7&", "&LEFT(Roster!C7,1) -> Padams, J | C7: 1 | D7: 5 | E7: 1 | F7: 1 | G7: 0 | H7: 0 | I7: 2 | J7: 3 | K7: 2 | L7: 0 | M7: 0 | N7: 0.4 | O7: 0.6 | P7: 0.4 | Q7: 1 | R7: 5 | S7: 3 | T7: 0
A8: 6 | B8: =Roster!B8&", "&LEFT(Roster!C8,1) -> Patel, S | C8: 1 | D8: 6 | E8: 3 | F8: 1 | G8: 0 | H8: 0 | I8: 4 | J8: 3 | K8: 1 | L8: 0 | M8: 1 | N8: 0.6666666667 | O8: 0.8333333333 | P8: 0.6666666667 | Q8: 1.5 | R8: 6 | S8: 5 | T8: 0
A9: 7 | B9: =Roster!B9&", "&LEFT(Roster!C9,1) -> Shelton, J | C9: 1 | D9: 3 | E9: 1 | F9: 1 | G9: 0 | H9: 0 | I9: 2 | J9: 2 | K9: 1 | L9: 2 | M9: 0 | N9: 0.6666666667 | O9: 1 | P9: 0.8 | Q9: 1.8 | R9: 5 | S9: 3 | T9: 0
A10: 8 | B10: =Roster!B10&", "&LEFT(Roster!C10,1) -> Stegman, M | D10: 0 | I10: 0 | N10: 0 | O10: 0 | P10: 0 | Q10: 0 | S10: 0
A11: 9 | B11: =Roster!B11&", "&LEFT(Roster!C11,1) -> Stragier, M | C11: 1 | D11: 5 | E11: 2 | F11: 0 | G11: 0 | H11: 1 | I11: 3 | J11: 2 | K11: 5 | L11: 0 | M11: 0 | N11: 0.6 | O11: 1.2 | P11: 0.6 | Q11: 1.8 | R11: 5 | S11: 6 | T11: 0
A12: 10 | B12: =Roster!B12&", "&LEFT(Roster!C12,1) -> Vicic, M | C12: 1 | D12: 5 | E12: 3 | F12: 1 | G12: 0 | H12: 0 | I12: 4 | J12: 4 | K12: 1 | L12: 1 | M12: 0 | N12: 0.8 | O12: 1 | P12: 0.8333333333 | Q12: 1.833333333 | R12: 6 | S12: 5 | T12: 0
A13: 11 | B13: =Roster!B13&", "&LEFT(Roster!C13,1) -> Vogel, A | D13: 0 | I13: 0 | N13: 0 | O13: 0 | P13: 0 | Q13: 0 | S13: 0
A14: 12 | B14: =Roster!B14&", "&LEFT(Roster!C14,1) -> Waldman, J | C14: 1 | D14: 5 | E14: 2 | F14: 2 | G14: 0 | H14: 0 | I14: 4 | J14: 2 | K14: 5 | L14: 0 | M14: 0 | N14: 0.8 | O14: 1.2 | P14: 0.8 | Q14: 2 | R14: 5 | S14: 6 | T14: 0
A15: 13 | B15: =Roster!B15&", "&LEFT(Roster!C15,1) -> Sereno, G | C15: 1 | D15: 4 | E15: 1 | F15: 0 | G15: 0 | H15: 0 | I15: 1 | J15: 1 | K15: 2 | L15: 1 | M15: 1 | N15: 0.25 | O15: 0.25 | P15: 0.4 | Q15: 0.65 | R15: 5 | S15: 1 | T15: 0
A16: 14 | B16: =Roster!B16&", "&LEFT(Roster!C16,1) -> Saxton, K | D16: 0 | I16: 0 | N16: 0 | O16: 0 | P16: 0 | Q16: 0 | S16: 0
A17: 15 | B17: =Roster!B17&", "&LEFT(Roster!C17,1) -> Martin, M | D17: 0 | I17: 0 | N17: 0 | O17: 0 | P17: 0 | Q17: 0 | S17: 0
A18: 16 | B18: =Roster!B18&", "&LEFT(Roster!C18,1) -> Gaston, A | D18: 0 | I18: 0 | N18: 0 | O18: 0 | P18: 0 | Q18: 0 | S18: 0
A19: 17 | B19: =Roster!B19&", "&LEFT(Roster!C19,1) -> Lee, J | D19: 0 | I19: 0 | N19: 0 | O19: 0 | P19: 0 | Q19: 0 | S19: 0
A20: 18 | B20: =Roster!B20&", "&LEFT(Roster!C20,1) -> Stetson, M | D20: 0 | I20: 0 | N20: 0 | O20: 0 | P20: 0 | Q20: 0 | S20: 0
A21: 19 | B21: =Roster!B21&", "&LEFT(Roster!C21,1) -> Player, T | D21: 0 | I21: 0 | N21: 0 | O21: 0 | P21: 0 | Q21: 0 | S21: 0
A22: 20 | B22: =Roster!B22&", "&LEFT(Roster!C22,1) -> Player, U | D22: 0 | I22: 0 | N22: 0 | O22: 0 | P22: 0 | Q22: 0 | S22: 0
A23: 21 | B23: =Roster!B23&", "&LEFT(Roster!C23,1) -> Player, V | D23: 0 | I23: 0 | N23: 0 | O23: 0 | P23: 0 | Q23: 0 | S23: 0
A24: 22 | B24: =Roster!B24&", "&LEFT(Roster!C24,1) -> Player, W | D24: 0 | I24: 0 | N24: 0 | O24: 0 | P24: 0 | Q24: 0 | S24: 0
A25: 23 | B25: =Roster!B25&", "&LEFT(Roster!C25,1) -> Player, X | D25: 0 | I25: 0 | N25: 0 | O25: 0 | P25: 0 | Q25: 0 | S25: 0
A26: 24 | B26: =Roster!B26&", "&LEFT(Roster!C26,1) -> Player, Y | D26: 0 | I26: 0 | N26: 0 | O26: 0 | P26: 0 | Q26: 0 | S26: 0
A27: 25 | B27: =Roster!B27&", "&LEFT(Roster!C27,1) -> Player, Z | D27: 0 | I27: 0 | N27: 0 | O27: 0 | P27: 0 | Q27: 0 | S27: 0
B28: =IF(C28>0,1,0) -> 1 | C28: =SUM(C3:C27) -> 11 | D28: 52 | E28: 20 | F28: 10 | G28: 0 | H28: 3 | I28: 33 | J28: 29 | K28: 29 | L28: 5 | M28: 3 | N28: =IF(C28>0,SUM(N3:N27)/C28,0) -> 0.6212121212 | O28: =IF(C28>0,SUM(O3:O27)/C28,0) -> 0.9757575758 | P28: =IF(C28>0,SUM(P3:P27)/C28,0) -> 0.6636363636 | Q28: =IF(C28>0,SUM(Q3:Q27)/C28,0) -> 1.639393939 | R28: =SUM(R3:R27) -> 57 | S28: =SUM(S3:S27) -> 52 | T28: =SUM(T3:T27) -> 0

Sheet Game4
A1: =Roster!A1&" NGNL "&Results!B6&" "&Results!C6&" "&Results!D6&"-"&Results!E6 -> NGNL 2019 Summer Season NGNL vs AFOS L 24-27
A2: Rank | B2: Name | C2: At Game? | D2: AB | E2: 1B | F2: 2B | G2: 3B | H2: HR | I2: Hits | J2: Runs | K2: RBIs | L2: BB | M2: SO | N2: AVG | O2: SLG | P2: OBA | Q2: OPS | R2: PA | S2: TB | T2: SF
A3: 1 | B3: =Roster!B3&", "&LEFT(Roster!C3,1) -> Arias, L | C3: 1 | D3: =R3-(T3+L3) -> 4 | E3: 3 | I3: =E3+F3+G3+H3 -> 3 | J3: 3 | K3: 2 | N3: =IF(D3>0,(E3+F3+G3+H3)/D3,0) -> 0.75 | O3: =IF(D3>0,S3/D3,0) -> 0.75 | P3: =IF(R3>0,(E3+F3+G3+H3+L3)/R3,0) -> 0.6 | Q3: =O3+P3 -> 1.35 | R3: 5 | S3: =(E3+F3*2+G3*3+H3*4) -> 3 | T3: 1
A4: 2 | B4: =Roster!B4&", "&LEFT(Roster!C4,1) -> Castello, E | C4: 1 | D4: 5 | E4: 4 | I4: 4 | J4: 2 | K4: 1 | N4: 0.8 | O4: 0.8 | P4: 0.8 | Q4: 1.6 | R4: 5 | S4: 4
A5: 3 | B5: =Roster!B5&", "&LEFT(Roster!C5,1) -> Huls, J | C5: 1 | D5: 3 | E5: 1 | F5: 1 | G5: 1 | I5: 3 | J5: 4 | K5: 4 | L5: 2 | N5: 1 | O5: 2 | P5: 1 | Q5: 3 | R5: 5 | S5: 6
A6: 4 | B6: =Roster!B6&", "&LEFT(Roster!C6,1) -> McKinney, C | C6: 1 | D6: 4 | E6: 2 | F6: 1 | I6: 3 | J6: 2 | K6: 3 | L6: 1 | N6: 0.75 | O6: 1 | P6: 0.8 | Q6: 1.8 | R6: 5 | S6: 4
A7: 5 | B7: =Roster!B7&", "&LEFT(Roster!C7,1) -> Padams, J | D7: 0 | I7: 0 | N7: 0 | O7: 0 | P7: 0 | Q7: 0 | S7: 0
A8: 6 | B8: =Roster!B8&", "&LEFT(Roster!C8,1) -> Patel, S | C8: 1 | D8: 5 | E8: 2 | F8: 1 | G8: 1 | I8: 4 | J8: 1 | K8: 4 | N8: 0.8 | O8: 1.4 | P8: 0.8 | Q8: 2.2 | R8: 5 | S8: 7
A9: 7 | B9: =Roster!B9&", "&LEFT(Roster!C9,1) -> Shelton, J | C9: 1 | D9: 4 | E9: 2 | F9: 1 | I9: 3 | J9: 2 | L9: 1 | N9: 0.75 | O9: 1 | P9: 0.8 | Q9: 1.8 | R9: 5 | S9: 4
A10: 8 | B10: =Roster!B10&", "&LEFT(Roster!C10,1) -> Stegman, M | D10: 0 | I10: 0 | N10: 0 | O10: 0 | P10: 0 | Q10: 0 | S10: 0
A11: 9 | B11: =Roster!B11&", "&LEFT(Roster!C11,1) -> Stragier, M | C11: 1 | D11: 3 | H11: 1 | I11: 1 | J11: 1 | K11: 3 | L11: 1 | N11: 0.3333333333 | O11: 1.333333333 | P11: 0.4 | Q11: 1.733333333 | R11: 5 | S11: 4 | T11: 1
A12: 10 | B12: =Roster!B12&", "&LEFT(Roster!C12,1) -> Vicic, M | C12: 1 | D12: 5 | E12: 3 | F12: 1 | I12: 4 | J12: 4 | K12: 2 | N12: 0.8 | O12: 1 | P12: 0.8 | Q12: 1.8 | R12: 5 | S12: 5
A13: 11 | B13: =Roster!B13&", "&LEFT(Roster!C13,1) -> Vogel, A | D13: 0 | I13: 0 | N13: 0 | O13: 0 | P13: 0 | Q13: 0 | S13: 0
A14: 12 | B14: =Roster!B14&", "&LEFT(Roster!C14,1) -> Waldman, J | C14: 1 | D14: 5 | E14: 2 | I14: 2 | J14: 2 | K14: 1 | N14: 0.4 | O14: 0.4 | P14: 0.4 | Q14: 0.8 | R14: 5 | S14: 2
A15: 13 | B15: =Roster!B15&", "&LEFT(Roster!C15,1) -> Sereno, G | D15: 0 | I15: 0 | N15: 0 | O15: 0 | P15: 0 | Q15: 0 | S15: 0
A16: 14 | B16: =Roster!B16&", "&LEFT(Roster!C16,1) -> Saxton, K | C16: 1 | D16: 4 | E16: 1 | I16: 1 | J16: 1 | K16: 1 | M16: 1 | N16: 0.25 | O16: 0.25 | P16: 0.25 | Q16: 0.5 | R16: 4 | S16: 1
A17: 15 | B17: =Roster!B17&", "&LEFT(Roster!C17,1) -> Martin, M | C17: 1 | D17: 4 | E17: 2 | I17: 2 | J17: 2 | K17: 2 | N17: 0.5 | O17: 0.5 | P17: 0.5 | Q17: 1 | R17: 4 | S17: 2
A18: 16 | B18: =Roster!B18&", "&LEFT(Roster!C18,1) -> Gaston, A | D18: 0 | I18: 0 | N18: 0 | O18: 0 | P18: 0 | Q18: 0 | S18: 0
A19: 17 | B19: =Roster!B19&", "&LEFT(Roster!C19,1) -> Lee, J | D19: 0 | I19: 0 | N19: 0 | O19: 0 | P19: 0 | Q19: 0 | S19: 0
A20: 18 | B20: =Roster!B20&", "&LEFT(Roster!C20,1) -> Stetson, M | D20: 0 | I20: 0 | N20: 0 | O20: 0 | P20: 0 | Q20: 0 | S20: 0
A21: 19 | B21: =Roster!B21&", "&LEFT(Roster!C21,1) -> Player, T | D21: 0 | I21: 0 | N21: 0 | O21: 0 | P21: 0 | Q21: 0 | S21: 0
A22: 20 | B22: =Roster!B22&", "&LEFT(Roster!C22,1) -> Player, U | D22: 0 | I22: 0 | N22: 0 | O22: 0 | P22: 0 | Q22: 0 | S22: 0
A23: 21 | B23: =Roster!B23&", "&LEFT(Roster!C23,1) -> Player, V | D23: 0 | I23: 0 | N23: 0 | O23: 0 | P23: 0 | Q23: 0 | S23: 0
A24: 22 | B24: =Roster!B24&", "&LEFT(Roster!C24,1) -> Player, W | D24: 0 | I24: 0 | N24: 0 | O24: 0 | P24: 0 | Q24: 0 | S24: 0
A25: 23 | B25: =Roster!B25&", "&LEFT(Roster!C25,1) -> Player, X | D25: 0 | I25: 0 | N25: 0 | O25: 0 | P25: 0 | Q25: 0 | S25: 0
A26: 24 | B26: =Roster!B26&", "&LEFT(Roster!C26,1) -> Player, Y | D26: 0 | I26: 0 | N26: 0 | O26: 0 | P26: 0 | Q26: 0 | S26: 0
A27: 25 | B27: =Roster!B27&", "&LEFT(Roster!C27,1) -> Player, Z | D27: 0 | I27: 0 | N27: 0 | O27: 0 | P27: 0 | Q27: 0 | S27: 0
B28: =IF(C28>0,1,0) -> 1 | C28: =SUM(C3:C27) -> 11 | D28: 46 | E28: 22 | F28: 5 | G28: 2 | H28: 1 | I28: 30 | J28: 24 | K28: 23 | L28: 5 | M28: 1 | N28: =IF(C28>0,SUM(N3:N27)/C28,0) -> 0.6484848485 | O28: =IF(C28>0,SUM(O3:O27)/C28,0) -> 0.9484848485 | P28: =IF(C28>0,SUM(P3:P27)/C28,0) -> 0.65 | Q28: =IF(C28>0,SUM(Q3:Q27)/C28,0) -> 1.598484848 | R28: =SUM(R3:R27) -> 53 | S28: =SUM(S3:S27) -> 42 | T28: =SUM(T3:T27) -> 2

Sheet Game5
A1: =Roster!A1&" NGNL "&Results!B7&" "&Results!C7&" "&Results!D7&"-"&Results!E7 -> NGNL 2019 Summer Season NGNL at Dawgs L 11-13
A2: Rank | B2: Name | C2: At Game? | D2: AB | E2: 1B | F2: 2B | G2: 3B | H2: HR | I2: Hits | J2: Runs | K2: RBIs | L2: BB | M2: SO | N2: AVG | O2: SLG | P2: OBA | Q2: OPS | R2: PA | S2: TB | T2: SF
A3: 1 | B3: =Roster!B3&", "&LEFT(Roster!C3,1) -> Arias, L | C3: 1 | D3: =R3-(T3+L3) -> 4 | E3: 2 | I3: =E3+F3+G3+H3 -> 2 | J3: 1 | N3: =IF(D3>0,(E3+F3+G3+H3)/D3,0) -> 0.5 | O3: =IF(D3>0,S3/D3,0) -> 0.5 | P3: =IF(R3>0,(E3+F3+G3+H3+L3)/R3,0) -> 0.5 | Q3: =O3+P3 -> 1 | R3: 4 | S3: =(E3+F3*2+G3*3+H3*4) -> 2
A4: 2 | B4: =Roster!B4&", "&LEFT(Roster!C4,1) -> Castello, E | C4: 1 | D4: 3 | E4: 1 | I4: 1 | J4: 1 | N4: 0.3333333333 | O4: 0.3333333333 | P4: 0.3333333333 | Q4: 0.6666666667 | R4: 3 | S4: 1
A5: 3 | B5: =Roster!B5&", "&LEFT(Roster!C5,1) -> Huls, J | C5: 1 | D5: 4 | E5: 1 | F5: 2 | I5: 3 | J5: 3 | K5: 3 | N5: 0.75 | O5: 1.25 | P5: 0.75 | Q5: 2 | R5: 4 | S5: 5
A6: 4 | B6: =Roster!B6&", "&LEFT(Roster!C6,1) -> McKinney, C | C6: 1 | D6: 4 | E6: 1 | F6: 2 | H6: 1 | I6: 4 | J6: 2 | K6: 5 | N6: 1 | O6: 2.25 | P6: 1 | Q6: 3.25 | R6: 4 | S6: 9
A7: 5 | B7: =Roster!B7&", "&LEFT(Roster!C7,1) -> Padams, J | D7: 0 | I7: 0 | N7: 0 | O7: 0 | P7: 0 | Q7: 0 | S7: 0
A8: 6 | B8: =Roster!B8&", "&LEFT(Roster!C8,1) -> Patel, S | C8: 1 | D8: 4 | E8: 1 | F8: 1 | I8: 2 | J8: 1 | N8: 0.5 | O8: 0.75 | P8: 0.5 | Q8: 1.25 | R8: 4 | S8: 3
A9: 7 | B9: =Roster!B9&", "&LEFT(Roster!C9,1) -> Shelton, J | C9: 1 | D9: 4 | E9: 2 | I9: 2 | K9: 2 | N9: 0.5 | O9: 0.5 | P9: 0.5 | Q9: 1 | R9: 4 | S9: 2
A10: 8 | B10: =Roster!B10&", "&LEFT(Roster!C10,1) -> Stegman, M | D10: 0 | I10: 0 | N10: 0 | O10: 0 | P10: 0 | Q10: 0 | S10: 0
A11: 9 | B11: =Roster!B11&", "&LEFT(Roster!C11,1) -> Stragier, M | C11: 1 | D11: 4 | E11: 1 | I11: 1 | J11: 1 | N11: 0.25 | O11: 0.25 | P11: 0.25 | Q11: 0.5 | R11: 4 | S11: 1
A12: 10 | B12: =Roster!B12&", "&LEFT(Roster!C12,1) -> Vicic, M | D12: 0 | I12: 0 | N12: 0 | O12: 0 | P12: 0 | Q12: 0 | S12: 0
A13: 11 | B13: =Roster!B13&", "&LEFT(Roster!C13,1) -> Vogel, A | D13: 0 | I13: 0 | N13: 0 | O13: 0 | P13: 0 | Q13: 0 | S13: 0
A14: 12 | B14: =Roster!B14&", "&LEFT(Roster!C14,1) -> Waldman, J | C14: 1 | D14: 4 | E14: 2 | I14: 2 | J14: 1 | N14: 0.5 | O14: 0.5 | P14: 0.5 | Q14: 1 | R14: 4 | S14: 2
A15: 13 | B15: =Roster!B15&", "&LEFT(Roster!C15,1) -> Sereno, G | D15: 0 | I15: 0 | N15: 0 | O15: 0 | P15: 0 | Q15: 0 | S15: 0
A16: 14 | B16: =Roster!B16&", "&LEFT(Roster!C16,1) -> Saxton, K | C16: 1 | D16: 3 | E16: 1 | I16: 1 | J16: 1 | N16: 0.3333333333 | O16: 0.3333333333 | P16: 0.3333333333 | Q16: 0.6666666667 | R16: 3 | S16: 1
A17: 15 | B17: =Roster!B17&", "&LEFT(Roster!C17,1) -> Martin, M | C17: 1 | D17: 3 | I17: 0 | N17: 0 | O17: 0 | P17: 0 | Q17: 0 | R17: 3 | S17: 0
A18: 16 | B18: =Roster!B18&", "&LEFT(Roster!C18,1) -> Gaston, A | D18: 0 | I18: 0 | N18: 0 | O18: 0 | P18: 0 | Q18: 0 | S18: 0
A19: 17 | B19: =Roster!B19&", "&LEFT(Roster!C19,1) -> Lee, J | D19: 0 | I19: 0 | N19: 0 | O19: 0 | P19: 0 | Q19: 0 | S19: 0
A20: 18 | B20: =Roster!B20&", "&LEFT(Roster!C20,1) -> Stetson, M | D20: 0 | I20: 0 | N20: 0 | O20: 0 | P20: 0 | Q20: 0 | S20: 0
A21: 19 | B21: =Roster!B21&", "&LEFT(Roster!C21,1) -> Player, T | D21: 0 | I21: 0 | N21: 0 | O21: 0 | P21: 0 | Q21: 0 | S21: 0
A22: 20 | B22: =Roster!B22&", "&LEFT(Roster!C22,1) -> Player, U | D22: 0 | I22: 0 | N22: 0 | O22: 0 | P22: 0 | Q22: 0 | S22: 0
A23: 21 | B23: =Roster!B23&", "&LEFT(Roster!C23,1) -> Player, V | D23: 0 | I23: 0 | N23: 0 | O23: 0 | P23: 0 | Q23: 0 | S23: 0
A24: 22 | B24: =Roster!B24&", "&LEFT(Roster!C24,1) -> Player, W | D24: 0 | I24: 0 | N24: 0 | O24: 0 | P24: 0 | Q24: 0 | S24: 0
A25: 23 | B25: =Roster!B25&", "&LEFT(Roster!C25,1) -> Player, X | D25: 0 | I25: 0 | N25: 0 | O25: 0 | P25: 0 | Q25: 0 | S25: 0
A26: 24 | B26: =Roster!B26&", "&LEFT(Roster!C26,1) -> Player, Y | D26: 0 | I26: 0 | N26: 0 | O26: 0 | P26: 0 | Q26: 0 | S26: 0
A27: 25 | B27: =Roster!B27&", "&LEFT(Roster!C27,1) -> Player, Z | D27: 0 | I27: 0 | N27: 0 | O27: 0 | P27: 0 | Q27: 0 | S27: 0
B28: =IF(C28>0,1,0) -> 1 | C28: =SUM(C3:C27) -> 10 | D28: 37 | E28: 12 | F28: 5 | G28: 0 | H28: 1 | I28: 18 | J28: 11 | K28: 10 | L28: 0 | M28: 0 | N28: =IF(C28>0,SUM(N3:N27)/C28,0) -> 0.4666666667 | O28: =IF(C28>0,SUM(O3:O27)/C28,0) -> 0.6666666667 | P28: =IF(C28>0,SUM(P3:P27)/C28,0) -> 0.4666666667 | Q28: =IF(C28>0,SUM(Q3:Q27)/C28,0) -> 1.133333333 | R28: =SUM(R3:R27) -> 37 | S28: =SUM(S3:S27) -> 26 | T28: =SUM(T3:T27) -> 0

Sheet Game6
A1: =Roster!A1&" NGNL "&Results!B8&" "&Results!C8&" "&Results!D8&"-"&Results!E8 -> NGNL 2019 Summer Season NGNL at Titan-1UP L 3-18
A2: Rank | B2: Name | C2: At Game? | D2: AB | E2: 1B | F2: 2B | G2: 3B | H2: HR | I2: Hits | J2: Runs | K2: RBIs | L2: BB | M2: SO | N2: AVG | O2: SLG | P2: OBA | Q2: OPS | R2: PA | S2: TB | T2: SF
A3: 1 | B3: =Roster!B3&", "&LEFT(Roster!C3,1) -> Arias, L | C3: 1 | D3: =R3-(T3+L3) -> 4 | E3: 1 | I3: =E3+F3+G3+H3 -> 1 | N3: =IF(D3>0,(E3+F3+G3+H3)/D3,0) -> 0.25 | O3: =IF(D3>0,S3/D3,0) -> 0.25 | P3: =IF(R3>0,(E3+F3+G3+H3+L3)/R3,0) -> 0.25 | Q3: =O3+P3 -> 0.5 | R3: 4 | S3: =(E3+F3*2+G3*3+H3*4) -> 1
A4: 2 | B4: =Roster!B4&", "&LEFT(Roster!C4,1) -> Castello, E | C4: 1 | D4: 3 | I4: 0 | N4: 0 | O4: 0 | P4: 0 | Q4: 0 | R4: 3 | S4: 0
A5: 3 | B5: =Roster!B5&", "&LEFT(Roster!C5,1) -> Huls, J | D5: 0 | I5: 0 | N5: 0 | O5: 0 | P5: 0 | Q5: 0 | S5: 0
A6: 4 | B6: =Roster!B6&", "&LEFT(Roster!C6,1) -> McKinney, C | D6: 0 | I6: 0 | N6: 0 | O6: 0 | P6: 0 | Q6: 0 | S6: 0
A7: 5 | B7: =Roster!B7&", "&LEFT(Roster!C7,1) -> Padams, J | D7: 0 | I7: 0 | N7: 0 | O7: 0 | P7: 0 | Q7: 0 | S7: 0
A8: 6 | B8: =Roster!B8&", "&LEFT(Roster!C8,1) -> Patel, S | C8: 1 | D8: 3 | E8: 2 | I8: 2 | K8: 1 | N8: 0.6666666667 | O8: 0.6666666667 | P8: 0.6666666667 | Q8: 1.333333333 | R8: 3 | S8: 2
A9: 7 | B9: =Roster!B9&", "&LEFT(Roster!C9,1) -> Shelton, J | C9: 1 | D9: 3 | I9: 0 | K9: 1 | N9: 0 | O9: 0 | P9: 0 | Q9: 0 | R9: 3 | S9: 0
A10: 8 | B10: =Roster!B10&", "&LEFT(Roster!C10,1) -> Stegman, M | D10: 0 | I10: 0 | N10: 0 | O10: 0 | P10: 0 | Q10: 0 | S10: 0
A11: 9 | B11: =Roster!B11&", "&LEFT(Roster!C11,1) -> Stragier, M | C11: 1 | D11: 3 | E11: 1 | G11: 1 | I11: 2 | J11: 1 | N11: 0.6666666667 | O11: 1.333333333 | P11: 0.6666666667 | Q11: 2 | R11: 3 | S11: 4
A12: 10 | B12: =Roster!B12&", "&LEFT(Roster!C12,1) -> Vicic, M | C12: 1 | D12: 4 | E12: 1 | H12: 1 | I12: 2 | J12: 1 | K12: 1 | N12: 0.5 | O12: 1.25 | P12: 0.5 | Q12: 1.75 | R12: 4 | S12: 5
A13: 11 | B13: =Roster!B13&", "&LEFT(Roster!C13,1) -> Vogel, A | D13: 0 | I13: 0 | N13: 0 | O13: 0 | P13: 0 | Q13: 0 | S13: 0
A14: 12 | B14: =Roster!B14&", "&LEFT(Roster!C14,1) -> Waldman, J | C14: 1 | D14: 3 | E14: 1 | F14: 1 | I14: 2 | J14: 1 | N14: 0.6666666667 | O14: 1 | P14: 0.6666666667 | Q14: 1.666666667 | R14: 3 | S14: 3
A15: 13 | B15: =Roster!B15&", "&LEFT(Roster!C15,1) -> Sereno, G | D15: 0 | I15: 0 | N15: 0 | O15: 0 | P15: 0 | Q15: 0 | S15: 0
A16: 14 | B16: =Roster!B16&", "&LEFT(Roster!C16,1) -> Saxton, K | C16: 1 | D16: 3 | E16: 1 | I16: 1 | N16: 0.3333333333 | O16: 0.3333333333 | P16: 0.3333333333 | Q16: 0.6666666667 | R16: 3 | S16: 1
A17: 15 | B17: =Roster!B17&", "&LEFT(Roster!C17,1) -> Martin, M | C17: 1 | D17: 3 | E17: 1 | I17: 1 | N17: 0.3333333333 | O17: 0.3333333333 | P17: 0.3333333333 | Q17: 0.6666666667 | R17: 3 | S17: 1
A18: 16 | B18: =Roster!B18&", "&LEFT(Roster!C18,1) -> Gaston, A | C18: 1 | D18: 3 | E18: 3 | I18: 3 | N18: 1 | O18: 1 | P18: 1 | Q18: 2 | R18: 3 | S18: 3
A19: 17 | B19: =Roster!B19&", "&LEFT(Roster!C19,1) -> Lee, J | D19: 0 | I19: 0 | N19: 0 | O19: 0 | P19: 0 | Q19: 0 | S19: 0
A20: 18 | B20: =Roster!B20&", "&LEFT(Roster!C20,1) -> Stetson, M | D20: 0 | I20: 0 | N20: 0 | O20: 0 | P20: 0 | Q20: 0 | S20: 0
A21: 19 | B21: =Roster!B21&", "&LEFT(Roster!C21,1) -> Player, T | D21: 0 | I21: 0 | N21: 0 | O21: 0 | P21: 0 | Q21: 0 | S21: 0
A22: 20 | B22: =Roster!B22&", "&LEFT(Roster!C22,1) -> Player, U | D22: 0 | I22: 0 | N22: 0 | O22: 0 | P22: 0 | Q22: 0 | S22: 0
A23: 21 | B23: =Roster!B23&", "&LEFT(Roster!C23,1) -> Player, V | D23: 0 | I23: 0 | N23: 0 | O23: 0 | P23: 0 | Q23: 0 | S23: 0
A24: 22 | B24: =Roster!B24&", "&LEFT(Roster!C24,1) -> Player, W | D24: 0 | I24: 0 | N24: 0 | O24: 0 | P24: 0 | Q24: 0 | S24: 0
A25: 23 | B25: =Roster!B25&", "&LEFT(Roster!C25,1) -> Player, X | D25: 0 | I25: 0 | N25: 0 | O25: 0 | P25: 0 | Q25: 0 | S25: 0
A26: 24 | B26: =Roster!B26&", "&LEFT(Roster!C26,1) -> Player, Y | D26: 0 | I26: 0 | N26: 0 | O26: 0 | P26: 0 | Q26: 0 | S26: 0
A27: 25 | B27: =Roster!B27&", "&LEFT(Roster!C27,1) -> Player, Z | D27: 0 | I27: 0 | N27: 0 | O27: 0 | P27: 0 | Q27: 0 | S27: 0
B28: =IF(C28>0,1,0) -> 1 | C28: =SUM(C3:C27) -> 10 | D28: 32 | E28: 11 | F28: 1 | G28: 1 | H28: 1 | I28: 14 | J28: 3 | K28: 3 | L28: 0 | M28: 0 | N28: =IF(C28>0,SUM(N3:N27)/C28,0) -> 0.4416666667 | O28: =IF(C28>0,SUM(O3:O27)/C28,0) -> 0.6166666667 | P28: =IF(C28>0,SUM(P3:P27)/C28,0) -> 0.4416666667 | Q28: =IF(C28>0,SUM(Q3:Q27)/C28,0) -> 1.058333333 | R28: =SUM(R3:R27) -> 32 | S28: =SUM(S3:S27) -> 20 | T28: =SUM(T3:T27) -> 0

Sheet Game7
A1: =Roster!A1&" NGNL "&Results!B9&" "&Results!C9&" "&Results!D9&"-"&Results!E9 -> NGNL 2019 Summer Season NGNL vs 5th Base L 18-23
A2: Rank | B2: Name | C2: At Game? | D2: AB | E2: 1B | F2: 2B | G2: 3B | H2: HR | I2: Hits | J2: Runs | K2: RBIs | L2: BB | M2: SO | N2: AVG | O2: SLG | P2: OBA | Q2: OPS | R2: PA | S2: TB | T2: SF
A3: 1 | B3: =Roster!B3&", "&LEFT(Roster!C3,1) -> Arias, L | C3: 1 | D3: =R3-(T3+L3) -> 4 | E3: 2 | F3: 2 | I3: =E3+F3+G3+H3 -> 4 | J3: 3 | K3: 3 | N3: =IF(D3>0,(E3+F3+G3+H3)/D3,0) -> 1 | O3: =IF(D3>0,S3/D3,0) -> 1.5 | P3: =IF(R3>0,(E3+F3+G3+H3+L3)/R3,0) -> 0.8 | Q3: =O3+P3 -> 2.3 | R3: 5 | S3: =(E3+F3*2+G3*3+H3*4) -> 6 | T3: 1
A4: 2 | B4: =Roster!B4&", "&LEFT(Roster!C4,1) -> Castello, E | C4: 1 | D4: 3 | E4: 2 | I4: 2 | J4: 2 | K4: 1 | L4: 1 | N4: 0.6666666667 | O4: 0.6666666667 | P4: 0.75 | Q4: 1.416666667 | R4: 4 | S4: 2
A5: 3 | B5: =Roster!B5&", "&LEFT(Roster!C5,1) -> Huls, J | D5: 0 | I5: 0 | N5: 0 | O5: 0 | P5: 0 | Q5: 0 | S5: 0
A6: 4 | B6: =Roster!B6&", "&LEFT(Roster!C6,1) -> McKinney, C | C6: 1 | D6: 3 | E6: 3 | I6: 3 | J6: 2 | K6: 2 | L6: 1 | N6: 1 | O6: 1 | P6: 0.8 | Q6: 1.8 | R6: 5 | S6: 3 | T6: 1
A7: 5 | B7: =Roster!B7&", "&LEFT(Roster!C7,1) -> Padams, J | C7: 1 | D7: 4 | E7: 2 | F7: 2 | I7: 4 | J7: 2 | K7: 2 | L7: 1 | N7: 1 | O7: 1.5 | P7: 1 | Q7: 2.5 | R7: 5 | S7: 6
A8: 6 | B8: =Roster!B8&", "&LEFT(Roster!C8,1) -> Patel, S | C8: 1 | D8: 5 | E8: 2 | F8: 1 | I8: 3 | K8: 4 | N8: 0.6 | O8: 0.8 | P8: 0.6 | Q8: 1.4 | R8: 5 | S8: 4
A9: 7 | B9: =Roster!B9&", "&LEFT(Roster!C9,1) -> Shelton, J | C9: 1 | D9: 5 | E9: 1 | I9: 1 | J9: 1 | K9: 2 | N9: 0.2 | O9: 0.2 | P9: 0.2 | Q9: 0.4 | R9: 5 | S9: 1
A10: 8 | B10: =Roster!B10&", "&LEFT(Roster!C10,1) -> Stegman, M | D10: 0 | I10: 0 | N10: 0 | O10: 0 | P10: 0 | Q10: 0 | S10: 0
A11: 9 | B11: =Roster!B11&", "&LEFT(Roster!C11,1) -> Stragier, M | D11: 0 | I11: 0 | N11: 0 | O11: 0 | P11: 0 | Q11: 0 | S11: 0
A12: 10 | B12: =Roster!B12&", "&LEFT(Roster!C12,1) -> Vicic, M | C12: 1 | D12: 3 | E12: 2 | I12: 2 | J12: 4 | K12: 2 | L12: 2 | N12: 0.6666666667 | O12: 0.6666666667 | P12: 0.8 | Q12: 1.466666667 | R12: 5 | S12: 2
A13: 11 | B13: =Roster!B13&", "&LEFT(Roster!C13,1) -> Vogel, A | D13: 0 | I13: 0 | N13: 0 | O13: 0 | P13: 0 | Q13: 0 | S13: 0
A14: 12 | B14: =Roster!B14&", "&LEFT(Roster!C14,1) -> Waldman, J | C14: 1 | D14: 5 | E14: 2 | I14: 2 | J14: 2 | K14: 1 | N14: 0.4 | O14: 0.4 | P14: 0.4 | Q14: 0.8 | R14: 5 | S14: 2
A15: 13 | B15: =Roster!B15&", "&LEFT(Roster!C15,1) -> Sereno, G | D15: 0 | I15: 0 | N15: 0 | O15: 0 | P15: 0 | Q15: 0 | S15: 0
A16: 14 | B16: =Roster!B16&", "&LEFT(Roster!C16,1) -> Saxton, K | D16: 0 | I16: 0 | N16: 0 | O16: 0 | P16: 0 | Q16: 0 | S16: 0
A17: 15 | B17: =Roster!B17&", "&LEFT(Roster!C17,1) -> Martin, M | D17: 0 | I17: 0 | N17: 0 | O17: 0 | P17: 0 | Q17: 0 | S17: 0
A18: 16 | B18: =Roster!B18&", "&LEFT(Roster!C18,1) -> Gaston, A | C18: 1 | D18: 4 | E18: 1 | I18: 1 | J18: 2 | K18: 1 | L18: 1 | N18: 0.25 | O18: 0.25 | P18: 0.4 | Q18: 0.65 | R18: 5 | S18: 1
A19: 17 | B19: =Roster!B19&", "&LEFT(Roster!C19,1) -> Lee, J | D19: 0 | I19: 0 | N19: 0 | O19: 0 | P19: 0 | Q19: 0 | S19: 0
A20: 18 | B20: =Roster!B20&", "&LEFT(Roster!C20,1) -> Stetson, M | D20: 0 | I20: 0 | N20: 0 | O20: 0 | P20: 0 | Q20: 0 | S20: 0
A21: 19 | B21: =Roster!B21&", "&LEFT(Roster!C21,1) -> Player, T | D21: 0 | I21: 0 | N21: 0 | O21: 0 | P21: 0 | Q21: 0 | S21: 0
A22: 20 | B22: =Roster!B22&", "&LEFT(Roster!C22,1) -> Player, U | D22: 0 | I22: 0 | N22: 0 | O22: 0 | P22: 0 | Q22: 0 | S22: 0
A23: 21 | B23: =Roster!B23&", "&LEFT(Roster!C23,1) -> Player, V | D23: 0 | I23: 0 | N23: 0 | O23: 0 | P23: 0 | Q23: 0 | S23: 0
A24: 22 | B24: =Roster!B24&", "&LEFT(Roster!C24,1) -> Player, W | D24: 0 | I24: 0 | N24: 0 | O24: 0 | P24: 0 | Q24: 0 | S24: 0
A25: 23 | B25: =Roster!B25&", "&LEFT(Roster!C25,1) -> Player, X | D25: 0 | I25: 0 | N25: 0 | O25: 0 | P25: 0 | Q25: 0 | S25: 0
A26: 24 | B26: =Roster!B26&", "&LEFT(Roster!C26,1) -> Player, Y | D26: 0 | I26: 0 | N26: 0 | O26: 0 | P26: 0 | Q26: 0 | S26: 0
A27: 25 | B27: =Roster!B27&", "&LEFT(Roster!C27,1) -> Player, Z | D27: 0 | I27: 0 | N27: 0 | O27: 0 | P27: 0 | Q27: 0 | S27: 0
B28: =IF(C28>0,1,0) -> 1 | C28: =SUM(C3:C27) -> 9 | D28: 36 | E28: 17 | F28: 5 | G28: 0 | H28: 0 | I28: 22 | J28: 18 | K28: 18 | L28: 6 | M28: 0 | N28: =IF(C28>0,SUM(N3:N27)/C28,0) -> 0.6425925926 | O28: =IF(C28>0,SUM(O3:O27)/C28,0) -> 0.7759259259 | P28: =IF(C28>0,SUM(P3:P27)/C28,0) -> 0.6388888889 | Q28: =IF(C28>0,SUM(Q3:Q27)/C28,0) -> 1.414814815 | R28: =SUM(R3:R27) -> 44 | S28: =SUM(S3:S27) -> 27 | T28: =SUM(T3:T27) -> 2

Sheet Game8
A1: =Roster!A1&" NGNL "&Results!B10&" "&Results!C10&" "&Results!D10&"-"&Results!E10 -> NGNL 2019 Summer Season NGNL -
A2: Rank | B2: Name | C2: At Game? | D2: AB | E2: 1B | F2: 2B | G2: 3B | H2: HR | I2: Hits | J2: Runs | K2: RBIs | L2: BB | M2: SO | N2: AVG | O2: SLG | P2: OBA | Q2: OPS | R2: PA | S2: TB | T2: SF
A3: 1 | B3: =Roster!B3&", "&LEFT(Roster!C3,1) -> Arias, L | D3: =R3-(T3+L3) -> 0 | I3: =E3+F3+G3+H3 -> 0 | N3: =IF(D3>0,(E3+F3+G3+H3)/D3,0) -> 0 | O3: =IF(D3>0,S3/D3,0) -> 0 | P3: =IF(R3>0,(E3+F3+G3+H3+L3)/R3,0) -> 0 | Q3: =O3+P3 -> 0 | S3: =(E3+F3*2+G3*3+H3*4) -> 0
A4: 2 | B4: =Roster!B4&", "&LEFT(Roster!C4,1) -> Castello, E | D4: 0 | I4: 0 | N4: 0 | O4: 0 | P4: 0 | Q4: 0 | S4: 0
A5: 3 | B5: =Roster!B5&", "&LEFT(Roster!C5,1) -> Huls, J | D5: 0 | I5: 0 | N5: 0 | O5: 0 | P5: 0 | Q5: 0 | S5: 0
A6: 4 | B6: =Roster!B6&", "&LEFT(Roster!C6,1) -> McKinney, C | D6: 0 | I6: 0 | N6: 0 | O6: 0 | P6: 0 | Q6: 0 | S6: 0
A7: 5 | B7: =Roster!B7&", "&LEFT(Roster!C7,1) -> Padams, J | D7: 0 | I7: 0 | N7: 0 | O7: 0 | P7: 0 | Q7: 0 | S7: 0
A8: 6 | B8: =Roster!B8&", "&LEFT(Roster!C8,1) -> Patel, S | D8: 0 | I8: 0 | N8: 0 | O8: 0 | P8: 0 | Q8: 0 | S8: 0
A9: 7 | B9: =Roster!B9&", "&LEFT(Roster!C9,1) -> Shelton, J | D9: 0 | I9: 0 | N9: 0 | O9: 0 | P9: 0 | Q9: 0 | S9: 0
A10: 8 | B10: =Roster!B10&", "&LEFT(Roster!C10,1) -> Stegman, M | D10: 0 | I10: 0 | N10: 0 | O10: 0 | P10: 0 | Q10: 0 | S10: 0
A11: 9 | B11: =Roster!B11&", "&LEFT(Roster!C11,1) -> Stragier, M | D11: 0 | I11: 0 | N11: 0 | O11: 0 | P11: 0 | Q11: 0 | S11: 0
A12: 10 | B12: =Roster!B12&", "&LEFT(Roster!C12,1) -> Vicic, M | D12: 0 | I12: 0 | N12: 0 | O12: 0 | P12: 0 | Q12: 0 | S12: 0
A13: 11 | B13: =Roster!B13&", "&LEFT(Roster!C13,1) -> Vogel, A | D13: 0 | I13: 0 | N13: 0 | O13: 0 | P13: 0 | Q13: 0 | S13: 0
A14: 12 | B14: =Roster!B14&", "&LEFT(Roster!C14,1) -> Waldman, J | D14: 0 | I14: 0 | N14: 0 | O14: 0 | P14: 0 | Q14: 0 | S14: 0
A15: 13 | B15: =Roster!B15&", "&LEFT(Roster!C15,1) -> Sereno, G | D15: 0 | I15: 0 | N15: 0 | O15: 0 | P15: 0 | Q15: 0 | S15: 0
A16: 14 | B16: =Roster!B16&", "&LEFT(Roster!C16,1) -> Saxton, K | D16: 0 | I16: 0 | N16: 0 | O16: 0 | P16: 0 | Q16: 0 | S16: 0
A17: 15 | B17: =Roster!B17&", "&LEFT(Roster!C17,1) -> Martin, M | D17: 0 | I17: 0 | N17: 0 | O17: 0 | P17: 0 | Q17: 0 | S17: 0
A18: 16 | B18: =Roster!B18&", "&LEFT(Roster!C18,1) -> Gaston, A | D18: 0 | I18: 0 | N18: 0 | O18: 0 | P18: 0 | Q18: 0 | S18: 0
A19: 17 | B19: =Roster!B19&", "&LEFT(Roster!C19,1) -> Lee, J | D19: 0 | I19: 0 | N19: 0 | O19: 0 | P19: 0 | Q19: 0 | S19: 0
A20: 18 | B20: =Roster!B20&", "&LEFT(Roster!C20,1) -> Stetson, M | D20: 0 | I20: 0 | N20: 0 | O20: 0 | P20: 0 | Q20: 0 | S20: 0
A21: 19 | B21: =Roster!B21&", "&LEFT(Roster!C21,1) -> Player, T | D21: 0 | I21: 0 | N21: 0 | O21: 0 | P21: 0 | Q21: 0 | S21: 0
A22: 20 | B22: =Roster!B22&", "&LEFT(Roster!C22,1) -> Player, U | D22: 0 | I22: 0 | N22: 0 | O22: 0 | P22: 0 | Q22: 0 | S22: 0
A23: 21 | B23: =Roster!B23&", "&LEFT(Roster!C23,1) -> Player, V | D23: 0 | I23: 0 | N23: 0 | O23: 0 | P23: 0 | Q23: 0 | S23: 0
A24: 22 | B24: =Roster!B24&", "&LEFT(Roster!C24,1) -> Player, W | D24: 0 | I24: 0 | N24: 0 | O24: 0 | P24: 0 | Q24: 0 | S24: 0
A25: 23 | B25: =Roster!B25&", "&LEFT(Roster!C25,1) -> Player, X | D25: 0 | I25: 0 | N25: 0 | O25: 0 | P25: 0 | Q25: 0 | S25: 0
A26: 24 | B26: =Roster!B26&", "&LEFT(Roster!C26,1) -> Player, Y | D26: 0 | I26: 0 | N26: 0 | O26: 0 | P26: 0 | Q26: 0 | S26: 0
A27: 25 | B27: =Roster!B27&", "&LEFT(Roster!C27,1) -> Player, Z | D27: 0 | I27: 0 | N27: 0 | O27: 0 | P27: 0 | Q27: 0 | S27: 0
B28: =IF(C28>0,1,0) -> 0 | C28: =SUM(C3:C27) -> 0 | D28: 0 | E28: 0 | F28: 0 | G28: 0 | H28: 0 | I28: 0 | J28: 0 | K28: 0 | L28: 0 | M28: 0 | N28: =IF(C28>0,SUM(N3:N27)/C28,0) -> 0 | O28: =IF(C28>0,SUM(O3:O27)/C28,0) -> 0 | P28: =IF(C28>0,SUM(P3:P27)/C28,0) -> 0 | Q28: =IF(C28>0,SUM(Q3:Q27)/C28,0) -> 0 | R28: =SUM(R3:R27) -> 0 | S28: =SUM(S3:S27) -> 0 | T28: =SUM(T3:T27) -> 0

Sheet Game9
A1: =Roster!A1&" NGNL "&Results!B11&" "&Results!C11&" "&Results!D11&"-"&Results!E11 -> NGNL 2019 Summer Season NGNL -
A2: Rank | B2: Name | C2: At Game? | D2: AB | E2: 1B | F2: 2B | G2: 3B | H2: HR | I2: Hits | J2: Runs | K2: RBIs | L2: BB | M2: SO | N2: AVG | O2: SLG | P2: OBA | Q2: OPS | R2: PA | S2: TB | T2: SF
A3: 1 | B3: =Roster!B3&", "&LEFT(Roster!C3,1) -> Arias, L | D3: =R3-(T3+L3) -> 0 | I3: =E3+F3+G3+H3 -> 0 | N3: =IF(D3>0,(E3+F3+G3+H3)/D3,0) -> 0 | O3: =IF(D3>0,S3/D3,0) -> 0 | P3: =IF(R3>0,(E3+F3+G3+H3+L3)/R3,0) -> 0 | Q3: =O3+P3 -> 0 | S3: =(E3+F3*2+G3*3+H3*4) -> 0
A4: 2 | B4: =Roster!B4&", "&LEFT(Roster!C4,1) -> Castello, E | D4: 0 | I4: 0 | N4: 0 | O4: 0 | P4: 0 | Q4: 0 | S4: 0
A5: 3 | B5: =Roster!B5&", "&LEFT(Roster!C5,1) -> Huls, J | D5: 0 | I5: 0 | N5: 0 | O5: 0 | P5: 0 | Q5: 0 | S5: 0
A6: 4 | B6: =Roster!B6&", "&LEFT(Roster!C6,1) -> McKinney, C | D6: 0 | I6: 0 | N6: 0 | O6: 0 | P6: 0 | Q6: 0 | S6: 0
A7: 5 | B7: =Roster!B7&", "&LEFT(Roster!C7,1) -> Padams, J | D7: 0 | I7: 0 | N7: 0 | O7: 0 | P7: 0 | Q7: 0 | S7: 0
A8: 6 | B8: =Roster!B8&", "&LEFT(Roster!C8,1) -> Patel, S | D8: 0 | I8: 0 | N8: 0 | O8: 0 | P8: 0 | Q8: 0 | S8: 0
A9: 7 | B9: =Roster!B9&", "&LEFT(Roster!C9,1) -> Shelton, J | D9: 0 | I9: 0 | N9: 0 | O9: 0 | P9: 0 | Q9: 0 | S9: 0
A10: 8 | B10: =Roster!B10&", "&LEFT(Roster!C10,1) -> Stegman, M | D10: 0 | I10: 0 | N10: 0 | O10: 0 | P10: 0 | Q10: 0 | S10: 0
A11: 9 | B11: =Roster!B11&", "&LEFT(Roster!C11,1) -> Stragier, M | D11: 0 | I11: 0 | N11: 0 | O11: 0 | P11: 0 | Q11: 0 | S11: 0
A12: 10 | B12: =Roster!B12&", "&LEFT(Roster!C12,1) -> Vicic, M | D12: 0 | I12: 0 | N12: 0 | O12: 0 | P12: 0 | Q12: 0 | S12: 0
A13: 11 | B13: =Roster!B13&", "&LEFT(Roster!C13,1) -> Vogel, A | D13: 0 | I13: 0 | N13: 0 | O13: 0 | P13: 0 | Q13: 0 | S13: 0
A14: 12 | B14: =Roster!B14&", "&LEFT(Roster!C14,1) -> Waldman, J | D14: 0 | I14: 0 | N14: 0 | O14: 0 | P14: 0 | Q14: 0 | S14: 0
A15: 13 | B15: =Roster!B15&", "&LEFT(Roster!C15,1) -> Sereno, G | D15: 0 | I15: 0 | N15: 0 | O15: 0 | P15: 0 | Q15: 0 | S15: 0
A16: 14 | B16: =Roster!B16&", "&LEFT(Roster!C16,1) -> Saxton, K | D16: 0 | I16: 0 | N16: 0 | O16: 0 | P16: 0 | Q16: 0 | S16: 0
A17: 15 | B17: =Roster!B17&", "&LEFT(Roster!C17,1) -> Martin, M | D17: 0 | I17: 0 | N17: 0 | O17: 0 | P17: 0 | Q17: 0 | S17: 0
A18: 16 | B18: =Roster!B18&", "&LEFT(Roster!C18,1) -> Gaston, A | D18: 0 | I18: 0 | N18: 0 | O18: 0 | P18: 0 | Q18: 0 | S18: 0
A19: 17 | B19: =Roster!B19&", "&LEFT(Roster!C19,1) -> Lee, J | D19: 0 | I19: 0 | N19: 0 | O19: 0 | P19: 0 | Q19: 0 | S19: 0
A20: 18 | B20: =Roster!B20&", "&LEFT(Roster!C20,1) -> Stetson, M | D20: 0 | I20: 0 | N20: 0 | O20: 0 | P20: 0 | Q20: 0 | S20: 0
A21: 19 | B21: =Roster!B21&", "&LEFT(Roster!C21,1) -> Player, T | D21: 0 | I21: 0 | N21: 0 | O21: 0 | P21: 0 | Q21: 0 | S21: 0
A22: 20 | B22: =Roster!B22&", "&LEFT(Roster!C22,1) -> Player, U | D22: 0 | I22: 0 | N22: 0 | O22: 0 | P22: 0 | Q22: 0 | S22: 0
A23: 21 | B23: =Roster!B23&", "&LEFT(Roster!C23,1) -> Player, V | D23: 0 | I23: 0 | N23: 0 | O23: 0 | P23: 0 | Q23: 0 | S23: 0
A24: 22 | B24: =Roster!B24&", "&LEFT(Roster!C24,1) -> Player, W | D24: 0 | I24: 0 | N24: 0 | O24: 0 | P24: 0 | Q24: 0 | S24: 0
A25: 23 | B25: =Roster!B25&", "&LEFT(Roster!C25,1) -> Player, X | D25: 0 | I25: 0 | N25: 0 | O25: 0 | P25: 0 | Q25: 0 | S25: 0
A26: 24 | B26: =Roster!B26&", "&LEFT(Roster!C26,1) -> Player, Y | D26: 0 | I26: 0 | N26: 0 | O26: 0 | P26: 0 | Q26: 0 | S26: 0
A27: 25 | B27: =Roster!B27&", "&LEFT(Roster!C27,1) -> Player, Z | D27: 0 | I27: 0 | N27: 0 | O27: 0 | P27: 0 | Q27: 0 | S27: 0
B28: =IF(C28>0,1,0) -> 0 | C28: =SUM(C3:C27) -> 0 | D28: 0 | E28: 0 | F28: 0 | G28: 0 | H28: 0 | I28: 0 | J28: 0 | K28: 0 | L28: 0 | M28: 0 | N28: =IF(C28>0,SUM(N3:N27)/C28,0) -> 0 | O28: =IF(C28>0,SUM(O3:O27)/C28,0) -> 0 | P28: =IF(C28>0,SUM(P3:P27)/C28,0) -> 0 | Q28: =IF(C28>0,SUM(Q3:Q27)/C28,0) -> 0 | R28: =SUM(R3:R27) -> 0 | S28: =SUM(S3:S27) -> 0 | T28: =SUM(T3:T27) -> 0

Sheet Game10
A1: =Roster!A1&" NGNL "&Results!B12&" "&Results!C12&" "&Results!D12&"-"&Results!E12 -> NGNL 2019 Summer Season NGNL -
A2: Rank | B2: Name | C2: At Game? | D2: AB | E2: 1B | F2: 2B | G2: 3B | H2: HR | I2: Hits | J2: Runs | K2: RBIs | L2: BB | M2: SO | N2: AVG | O2: SLG | P2: OBA | Q2: OPS | R2: PA | S2: TB | T2: SF
A3: 1 | B3: =Roster!B3&", "&LEFT(Roster!C3,1) -> Arias, L | D3: =R3-(T3+L3) -> 0 | I3: =E3+F3+G3+H3 -> 0 | N3: =IF(D3>0,(E3+F3+G3+H3)/D3,0) -> 0 | O3: =IF(D3>0,S3/D3,0) -> 0 | P3: =IF(R3>0,(E3+F3+G3+H3+L3)/R3,0) -> 0 | Q3: =O3+P3 -> 0 | S3: =(E3+F3*2+G3*3+H3*4) -> 0
A4: 2 | B4: =Roster!B4&", "&LEFT(Roster!C4,1) -> Castello, E | D4: 0 | I4: 0 | N4: 0 | O4: 0 | P4: 0 | Q4: 0 | S4: 0
A5: 3 | B5: =Roster!B5&", "&LEFT(Roster!C5,1) -> Huls, J | D5: 0 | I5: 0 | N5: 0 | O5: 0 | P5: 0 | Q5: 0 | S5: 0
A6: 4 | B6: =Roster!B6&", "&LEFT(Roster!C6,1) -> McKinney, C | D6: 0 | I6: 0 | N6: 0 | O6: 0 | P6: 0 | Q6: 0 | S6: 0
A7: 5 | B7: =Roster!B7&", "&LEFT(Roster!C7,1) -> Padams, J | D7: 0 | I7: 0 | N7: 0 | O7: 0 | P7: 0 | Q7: 0 | S7: 0
A8: 6 | B8: =Roster!B8&", "&LEFT(Roster!C8,1) -> Patel, S | D8: 0 | I8: 0 | N8: 0 | O8: 0 | P8: 0 | Q8: 0 | S8: 0
A9: 7 | B9: =Roster!B9&", "&LEFT(Roster!C9,1) -> Shelton, J | D9: 0 | I9: 0 | N9: 0 | O9: 0 | P9: 0 | Q9: 0 | S9: 0
A10: 8 | B10: =Roster!B10&", "&LEFT(Roster!C10,1) -> Stegman, M | D10: 0 | I10: 0 | N10: 0 | O10: 0 | P10: 0 | Q10: 0 | S10: 0
A11: 9 | B11: =Roster!B11&", "&LEFT(Roster!C11,1) -> Stragier, M | D11: 0 | I11: 0 | N11: 0 | O11: 0 | P11: 0 | Q11: 0 | S11: 0
A12: 10 | B12: =Roster!B12&", "&LEFT(Roster!C12,1) -> Vicic, M | D12: 0 | I12: 0 | N12: 0 | O12: 0 | P12: 0 | Q12: 0 | S12: 0
A13: 11 | B13: =Roster!B13&", "&LEFT(Roster!C13,1) -> Vogel, A | D13: 0 | I13: 0 | N13: 0 | O13: 0 | P13: 0 | Q13: 0 | S13: 0
A14: 12 | B14: =Roster!B14&", "&LEFT(Roster!C14,1) -> Waldman, J | D14: 0 | I14: 0 | N14: 0 | O14: 0 | P14: 0 | Q14: 0 | S14: 0
A15: 13 | B15: =Roster!B15&", "&LEFT(Roster!C15,1) -> Sereno, G | D15: 0 | I15: 0 | N15: 0 | O15: 0 | P15: 0 | Q15: 0 | S15: 0
A16: 14 | B16: =Roster!B16&", "&LEFT(Roster!C16,1) -> Saxton, K | D16: 0 | I16: 0 | N16: 0 | O16: 0 | P16: 0 | Q16: 0 | S16: 0
A17: 15 | B17: =Roster!B17&", "&LEFT(Roster!C17,1) -> Martin, M | D17: 0 | I17: 0 | N17: 0 | O17: 0 | P17: 0 | Q17: 0 | S17: 0
A18: 16 | B18: =Roster!B18&", "&LEFT(Roster!C18,1) -> Gaston, A | D18: 0 | I18: 0 | N18: 0 | O18: 0 | P18: 0 | Q18: 0 | S18: 0
A19: 17 | B19: =Roster!B19&", "&LEFT(Roster!C19,1) -> Lee, J | D19: 0 | I19: 0 | N19: 0 | O19: 0 | P19: 0 | Q19: 0 | S19: 0
A20: 18 | B20: =Roster!B20&", "&LEFT(Roster!C20,1) -> Stetson, M | D20: 0 | I20: 0 | N20: 0 | O20: 0 | P20: 0 | Q20: 0 | S20: 0
A21: 19 | B21: =Roster!B21&", "&LEFT(Roster!C21,1) -> Player, T | D21: 0 | I21: 0 | N21: 0 | O21: 0 | P21: 0 | Q21: 0 | S21: 0
A22: 20 | B22: =Roster!B22&", "&LEFT(Roster!C22,1) -> Player, U | D22: 0 | I22: 0 | N22: 0 | O22: 0 | P22: 0 | Q22: 0 | S22: 0
A23: 21 | B23: =Roster!B23&", "&LEFT(Roster!C23,1) -> Player, V | D23: 0 | I23: 0 | N23: 0 | O23: 0 | P23: 0 | Q23: 0 | S23: 0
A24: 22 | B24: =Roster!B24&", "&LEFT(Roster!C24,1) -> Player, W | D24: 0 | I24: 0 | N24: 0 | O24: 0 | P24: 0 | Q24: 0 | S24: 0
A25: 23 | B25: =Roster!B25&", "&LEFT(Roster!C25,1) -> Player, X | D25: 0 | I25: 0 | N25: 0 | O25: 0 | P25: 0 | Q25: 0 | S25: 0
A26: 24 | B26: =Roster!B26&", "&LEFT(Roster!C26,1) -> Player, Y | D26: 0 | I26: 0 | N26: 0 | O26: 0 | P26: 0 | Q26: 0 | S26: 0
A27: 25 | B27: =Roster!B27&", "&LEFT(Roster!C27,1) -> Player, Z | D27: 0 | I27: 0 | N27: 0 | O27: 0 | P27: 0 | Q27: 0 | S27: 0
B28: =IF(C28>0,1,0) -> 0 | C28: =SUM(C3:C27) -> 0 | D28: 0 | E28: 0 | F28: 0 | G28: 0 | H28: 0 | I28: 0 | J28: 0 | K28: 0 | L28: 0 | M28: 0 | N28: =IF(C28>0,SUM(N3:N27)/C28,0) -> 0 | O28: =IF(C28>0,SUM(O3:O27)/C28,0) -> 0 | P28: =IF(C28>0,SUM(P3:P27)/C28,0) -> 0 | Q28: =IF(C28>0,SUM(Q3:Q27)/C28,0) -> 0 | R28: =SUM(R3:R27) -> 0 | S28: =SUM(S3:S27) -> 0 | T28: =SUM(T3:T27) -> 0

Sheet Totals
A1: =Roster!A1&" Stats" -> NGNL 2019 Summer Season Stats
A2: Rank | B2: Name | C2: Games | D2: AB | E2: 1B | F2: 2B | G2: 3B | H2: HR | I2: Hits | J2: Runs | K2: RBIs | L2: BB | M2: SO | N2: AVG | O2: SLG | P2: OBA | Q2: OPS | R2: PA | S2: TB | T2: SF
A3: =--SUBTOTAL(3,B$3:B3) -> 1 | B3: =Roster!B5&", "&LEFT(Roster!C5,1) -> Huls, J | C3: =SUM(Game1:Game10!C5) -> 5 | D3: =R3-(T3+L3) -> 21 | E3: =SUM(Game1:Game10!E5) -> 10 | F3: =SUM(Game1:Game10!F5) -> 4 | G3: =SUM(Game1:Game10!G5) -> 2 | H3: =SUM(Game1:Game10!H5) -> 2 | I3: =E3+F3+G3+H3 -> 18 | J3: =SUM(Game1:Game10!J5) -> 16 | K3: =SUM(Game1:Game10!K5) -> 21 | L3: =SUM(Game1:Game10!L5) -> 2 | M3: =SUM(Game1:Game10!M5) -> 0 | N3: =IF(D3>0,(E3+F3+G3+H3)/D3,0) -> 0.8571428571 | O3: =IF(D3>0,S3/D3,0) -> 1.523809524 | P3: =IF(R3>0,(E3+F3+G3+H3+L3)/R3,0) -> 0.8695652174 | Q3: =O3+P3 -> 2.393374741 | R3: =SUM(Game1:Game10!R5) -> 23 | S3: =(E3+F3*2+G3*3+H3*4) -> 32 | T3: =SUM(Game1:Game10!T5) -> 0
A4: =--SUBTOTAL(3,B$3:B4) -> 2 | B4: =Roster!B3&", "&LEFT(Roster!C3,1) -> Arias, L | C4: =SUM(Game1:Game10!C3) -> 7 | D4: 28 | E4: =SUM(Game1:Game10!E3) -> 14 | F4: =SUM(Game1:Game10!F3) -> 6 | G4: =SUM(Game1:Game10!G3) -> 0 | H4: =SUM(Game1:Game10!H3) -> 0 | I4: 20 | J4: =SUM(Game1:Game10!J3) -> 16 | K4: =SUM(Game1:Game10!K3) -> 7 | L4: =SUM(Game1:Game10!L3) -> 0 | M4: =SUM(Game1:Game10!M3) -> 0 | N4: 0.7142857143 | O4: 0.9285714286 | P4: 0.6666666667 | Q4: 1.595238095 | R4: =SUM(Game1:Game10!R3) -> 30 | S4: 26 | T4: =SUM(Game1:Game10!T3) -> 2
A5: =--SUBTOTAL(3,B$3:B5) -> 2 | B5: =Roster!B13&", "&LEFT(Roster!C13,1) -> Vogel, A | C5: =SUM(Game1:Game10!C13) -> 0 | D5: 0 | E5: =SUM(Game1:Game10!E13) -> 0 | F5: =SUM(Game1:Game10!F13) -> 0 | G5: =SUM(Game1:Game10!G13) -> 0 | H5: =SUM(Game1:Game10!H13) -> 0 | I5: 0 | J5: =SUM(Game1:Game10!J13) -> 0 | K5: =SUM(Game1:Game10!K13) -> 0 | L5: =SUM(Game1:Game10!L13) -> 0 | M5: =SUM(Game1:Game10!M13) -> 0 | N5: 0 | O5: 0 | P5: 0 | Q5: 0 | R5: =SUM(Game1:Game10!R13) -> 0 | S5: 0 | T5: =SUM(Game1:Game10!T13) -> 0
A6: =--SUBTOTAL(3,B$3:B6) -> 3 | B6: =Roster!B12&", "&LEFT(Roster!C12,1) -> Vicic, M | C6: =SUM(Game1:Game10!C12) -> 6 | D6: 22 | E6: =SUM(Game1:Game10!E12) -> 12 | F6: =SUM(Game1:Game10!F12) -> 2 | G6: =SUM(Game1:Game10!G12) -> 0 | H6: =SUM(Game1:Game10!H12) -> 1 | I6: 15 | J6: =SUM(Game1:Game10!J12) -> 15 | K6: =SUM(Game1:Game10!K12) -> 8 | L6: =SUM(Game1:Game10!L12) -> 5 | M6: =SUM(Game1:Game10!M12) -> 0 | N6: 0.6818181818 | O6: 0.9090909091 | P6: 0.7407407407 | Q6: 1.64983165 | R6: =SUM(Game1:Game10!R12) -> 27 | S6: 20 | T6: =SUM(Game1:Game10!T12) -> 0
A7: =--SUBTOTAL(3,B$3:B7) -> 4 | B7: =Roster!B8&", "&LEFT(Roster!C8,1) -> Patel, S | C7: =SUM(Game1:Game10!C8) -> 7 | D7: 31 | E7: =SUM(Game1:Game10!E8) -> 14 | F7: =SUM(Game1:Game10!F8) -> 6 | G7: =SUM(Game1:Game10!G8) -> 1 | H7: =SUM(Game1:Game10!H8) -> 0 | I7: 21 | J7: =SUM(Game1:Game10!J8) -> 10 | K7: =SUM(Game1:Game10!K8) -> 16 | L7: =SUM(Game1:Game10!L8) -> 1 | M7: =SUM(Game1:Game10!M8) -> 1 | N7: 0.6774193548 | O7: 0.935483871 | P7: 0.6875 | Q7: 1.622983871 | R7: =SUM(Game1:Game10!R8) -> 32 | S7: 29 | T7: =SUM(Game1:Game10!T8) -> 0
A8: =--SUBTOTAL(3,B$3:B8) -> 5 | B8: =Roster!B6&", "&LEFT(Roster!C6,1) -> McKinney, C | C8: =SUM(Game1:Game10!C6) -> 6 | D8: 23 | E8: =SUM(Game1:Game10!E6) -> 10 | F8: =SUM(Game1:Game10!F6) -> 3 | G8: =SUM(Game1:Game10!G6) -> 1 | H8: =SUM(Game1:Game10!H6) -> 1 | I8: 15 | J8: =SUM(Game1:Game10!J6) -> 11 | K8: =SUM(Game1:Game10!K6) -> 13 | L8: =SUM(Game1:Game10!L6) -> 4 | M8: =SUM(Game1:Game10!M6) -> 1 | N8: 0.652173913 | O8: 1 | P8: 0.6785714286 | Q8: 1.678571429 | R8: =SUM(Game1:Game10!R6) -> 28 | S8: 23 | T8: =SUM(Game1:Game10!T6) -> 1
A9: =--SUBTOTAL(3,B$3:B9) -> 6 | B9: =Roster!B14&", "&LEFT(Roster!C14,1) -> Waldman, J | C9: =SUM(Game1:Game10!C14) -> 7 | D9: 30 | E9: =SUM(Game1:Game10!E14) -> 11 | F9: =SUM(Game1:Game10!F14) -> 5 | G9: =SUM(Game1:Game10!G14) -> 1 | H9: =SUM(Game1:Game10!H14) -> 0 | I9: 17 | J9: =SUM(Game1:Game10!J14) -> 10 | K9: =SUM(Game1:Game10!K14) -> 14 | L9: =SUM(Game1:Game10!L14) -> 1 | M9: =SUM(Game1:Game10!M14) -> 0 | N9: 0.5666666667 | O9: 0.8 | P9: 0.5806451613 | Q9: 1.380645161 | R9: =SUM(Game1:Game10!R14) -> 31 | S9: 24 | T9: =SUM(Game1:Game10!T14) -> 0
A10: =--SUBTOTAL(3,B$3:B10) -> 7 | B10: =Roster!B11&", "&LEFT(Roster!C11,1) -> Stragier, M | C10: =SUM(Game1:Game10!C11) -> 6 | D10: 21 | E10: =SUM(Game1:Game10!E11) -> 5 | F10: =SUM(Game1:Game10!F11) -> 1 | G10: =SUM(Game1:Game10!G11) -> 2 | H10: =SUM(Game1:Game10!H11) -> 2 | I10: 10 | J10: =SUM(Game1:Game10!J11) -> 7 | K10: =SUM(Game1:Game10!K11) -> 10 | L10: =SUM(Game1:Game10!L11) -> 2 | M10: =SUM(Game1:Game10!M11) -> 0 | N10: 0.4761904762 | O10: 1 | P10: 0.4615384615 | Q10: 1.461538462 | R10: =SUM(Game1:Game10!R11) -> 26 | S10: 21 | T10: =SUM(Game1:Game10!T11) -> 3
A11: =--SUBTOTAL(3,B$3:B11) -> 8 | B11: =Roster!B4&", "&LEFT(Roster!C4,1) -> Castello, E | C11: =SUM(Game1:Game10!C4) -> 7 | D11: 24 | E11: =SUM(Game1:Game10!E4) -> 11 | F11: =SUM(Game1:Game10!F4) -> 0 | G11: =SUM(Game1:Game10!G4) -> 0 | H11: =SUM(Game1:Game10!H4) -> 0 | I11: 11 | J11: =SUM(Game1:Game10!J4) -> 10 | K11: =SUM(Game1:Game10!K4) -> 4 | L11: =SUM(Game1:Game10!L4) -> 3 | M11: =SUM(Game1:Game10!M4) -> 0 | N11: 0.4583333333 | O11: 0.4583333333 | P11: 0.5185185185 | Q11: 0.9768518519 | R11: =SUM(Game1:Game10!R4) -> 27 | S11: 11 | T11: =SUM(Game1:Game10!T4) -> 0
A12: =--SUBTOTAL(3,B$3:B12) -> 9 | B12: =Roster!B9&", "&LEFT(Roster!C9,1) -> Shelton, J | C12: =SUM(Game1:Game10!C9) -> 7 | D12: 24 | E12: =SUM(Game1:Game10!E9) -> 7 | F12: =SUM(Game1:Game10!F9) -> 2 | G12: =SUM(Game1:Game10!G9) -> 0 | H12: =SUM(Game1:Game10!H9) -> 0 | I12: 9 | J12: =SUM(Game1:Game10!J9) -> 6 | K12: =SUM(Game1:Game10!K9) -> 8 | L12: =SUM(Game1:Game10!L9) -> 6 | M12: =SUM(Game1:Game10!M9) -> 0 | N12: 0.375 | O12: 0.4583333333 | P12: 0.5 | Q12: 0.9583333333 | R12: =SUM(Game1:Game10!R9) -> 30 | S12: 11 | T12: =SUM(Game1:Game10!T9) -> 0
A13: =--SUBTOTAL(3,B$3:B13) -> 10 | B13: =Roster!B7&", "&LEFT(Roster!C7,1) -> Padams, J | C13: =SUM(Game1:Game10!C7) -> 2 | D13: 9 | E13: =SUM(Game1:Game10!E7) -> 3 | F13: =SUM(Game1:Game10!F7) -> 3 | G13: =SUM(Game1:Game10!G7) -> 0 | H13: =SUM(Game1:Game10!H7) -> 0 | I13: 6 | J13: =SUM(Game1:Game10!J7) -> 5 | K13: =SUM(Game1:Game10!K7) -> 4 | L13: =SUM(Game1:Game10!L7) -> 1 | M13: =SUM(Game1:Game10!M7) -> 0 | N13: 0.6666666667 | O13: 1 | P13: 0.7 | Q13: 1.7 | R13: =SUM(Game1:Game10!R7) -> 10 | S13: 9 | T13: =SUM(Game1:Game10!T7) -> 0
A14: =--SUBTOTAL(3,B$3:B14) -> 11 | B14: =Roster!B18&", "&LEFT(Roster!C18,1) -> Gaston, A | C14: =SUM(Game1:Game10!C18) -> 2 | D14: 7 | E14: =SUM(Game1:Game10!E18) -> 4 | F14: =SUM(Game1:Game10!F18) -> 0 | G14: =SUM(Game1:Game10!G18) -> 0 | H14: =SUM(Game1:Game10!H18) -> 0 | I14: 4 | J14: =SUM(Game1:Game10!J18) -> 2 | K14: =SUM(Game1:Game10!K18) -> 1 | L14: =SUM(Game1:Game10!L18) -> 1 | M14: =SUM(Game1:Game10!M18) -> 0 | N14: 0.5714285714 | O14: 0.5714285714 | P14: 0.625 | Q14: 1.196428571 | R14: =SUM(Game1:Game10!R18) -> 8 | S14: 4 | T14: =SUM(Game1:Game10!T18) -> 0
A15: =--SUBTOTAL(3,B$3:B15) -> 12 | B15: =Roster!B17&", "&LEFT(Roster!C17,1) -> Martin, M | C15: =SUM(Game1:Game10!C17) -> 3 | D15: 10 | E15: =SUM(Game1:Game10!E17) -> 3 | F15: =SUM(Game1:Game10!F17) -> 0 | G15: =SUM(Game1:Game10!G17) -> 0 | H15: =SUM(Game1:Game10!H17) -> 0 | I15: 3 | J15: =SUM(Game1:Game10!J17) -> 2 | K15: =SUM(Game1:Game10!K17) -> 2 | L15: =SUM(Game1:Game10!L17) -> 0 | M15: =SUM(Game1:Game10!M17) -> 0 | N15: 0.3 | O15: 0.3 | P15: 0.3 | Q15: 0.6 | R15: =SUM(Game1:Game10!R17) -> 10 | S15: 3 | T15: =SUM(Game1:Game10!T17) -> 0
A16: =--SUBTOTAL(3,B$3:B16) -> 13 | B16: =Roster!B16&", "&LEFT(Roster!C16,1) -> Saxton, K | C16: =SUM(Game1:Game10!C16) -> 3 | D16: 10 | E16: =SUM(Game1:Game10!E16) -> 3 | F16: =SUM(Game1:Game10!F16) -> 0 | G16: =SUM(Game1:Game10!G16) -> 0 | H16: =SUM(Game1:Game10!H16) -> 0 | I16: 3 | J16: =SUM(Game1:Game10!J16) -> 2 | K16: =SUM(Game1:Game10!K16) -> 1 | L16: =SUM(Game1:Game10!L16) -> 0 | M16: =SUM(Game1:Game10!M16) -> 1 | N16: 0.3 | O16: 0.3 | P16: 0.3 | Q16: 0.6 | R16: =SUM(Game1:Game10!R16) -> 10 | S16: 3 | T16: =SUM(Game1:Game10!T16) -> 0
A17: =--SUBTOTAL(3,B$3:B17) -> 14 | B17: =Roster!B15&", "&LEFT(Roster!C15,1) -> Sereno, G | C17: =SUM(Game1:Game10!C15) -> 1 | D17: 4 | E17: =SUM(Game1:Game10!E15) -> 1 | F17: =SUM(Game1:Game10!F15) -> 0 | G17: =SUM(Game1:Game10!G15) -> 0 | H17: =SUM(Game1:Game10!H15) -> 0 | I17: 1 | J17: =SUM(Game1:Game10!J15) -> 1 | K17: =SUM(Game1:Game10!K15) -> 2 | L17: =SUM(Game1:Game10!L15) -> 1 | M17: =SUM(Game1:Game10!M15) -> 1 | N17: 0.25 | O17: 0.25 | P17: 0.4 | Q17: 0.65 | R17: =SUM(Game1:Game10!R15) -> 5 | S17: 1 | T17: =SUM(Game1:Game10!T15) -> 0
A18: =--SUBTOTAL(3,B$3:B18) -> 15 | B18: =Roster!B10&", "&LEFT(Roster!C10,1) -> Stegman, M | C18: =SUM(Game1:Game10!C10) -> 0 | D18: 0 | E18: =SUM(Game1:Game10!E10) -> 0 | F18: =SUM(Game1:Game10!F10) -> 0 | G18: =SUM(Game1:Game10!G10) -> 0 | H18: =SUM(Game1:Game10!H10) -> 0 | I18: 0 | J18: =SUM(Game1:Game10!J10) -> 0 | K18: =SUM(Game1:Game10!K10) -> 0 | L18: =SUM(Game1:Game10!L10) -> 0 | M18: =SUM(Game1:Game10!M10) -> 0 | N18: 0 | O18: 0 | P18: 0 | Q18: 0 | R18: =SUM(Game1:Game10!R10) -> 0 | S18: 0 | T18: =SUM(Game1:Game10!T10) -> 0
A19: =--SUBTOTAL(3,B$3:B19) -> 15 | B19: =Roster!B19&", "&LEFT(Roster!C19,1) -> Lee, J | C19: =SUM(Game1:Game10!C19) -> 0 | D19: =R19-(T19+L19) -> 0 | E19: =SUM(Game1:Game10!E19) -> 0 | F19: =SUM(Game1:Game10!F19) -> 0 | G19: =SUM(Game1:Game10!G19) -> 0 | H19: =SUM(Game1:Game10!H19) -> 0 | I19: =E19+F19+G19+H19 -> 0 | J19: =SUM(Game1:Game10!J19) -> 0 | K19: =SUM(Game1:Game10!K19) -> 0 | L19: =SUM(Game1:Game10!L19) -> 0 | M19: =SUM(Game1:Game10!M19) -> 0 | N19: =IF(D19>0,(E19+F19+G19+H19)/D19,0) -> 0 | O19: =IF(D19>0,S19/D19,0) -> 0 | P19: =IF(R19>0,(E19+F19+G19+H19+L19)/R19,0) -> 0 | Q19: =O19+P19 -> 0 | R19: =SUM(Game1:Game10!R19) -> 0 | S19: =(E19+F19*2+G19*3+H19*4) -> 0 | T19: =SUM(Game1:Game10!T19) -> 0
A20: =--SUBTOTAL(3,B$3:B20) -> 15 | B20: =Roster!B20&", "&LEFT(Roster!C20,1) -> Stetson, M | C20: =SUM(Game1:Game10!C20) -> 0 | D20: 0 | E20: =SUM(Game1:Game10!E20) -> 0 | F20: =SUM(Game1:Game10!F20) -> 0 | G20: =SUM(Game1:Game10!G20) -> 0 | H20: =SUM(Game1:Game10!H20) -> 0 | I20: 0 | J20: =SUM(Game1:Game10!J20) -> 0 | K20: =SUM(Game1:Game10!K20) -> 0 | L20: =SUM(Game1:Game10!L20) -> 0 | M20: =SUM(Game1:Game10!M20) -> 0 | N20: 0 | O20: 0 | P20: 0 | Q20: 0 | R20: =SUM(Game1:Game10!R20) -> 0 | S20: 0 | T20: =SUM(Game1:Game10!T20) -> 0
A21: =--SUBTOTAL(3,B$3:B21) -> 15 | B21: =Roster!B21&", "&LEFT(Roster!C21,1) -> Player, T | C21: =SUM(Game1:Game10!C21) -> 0 | D21: 0 | E21: =SUM(Game1:Game10!E21) -> 0 | F21: =SUM(Game1:Game10!F21) -> 0 | G21: =SUM(Game1:Game10!G21) -> 0 | H21: =SUM(Game1:Game10!H21) -> 0 | I21: 0 | J21: =SUM(Game1:Game10!J21) -> 0 | K21: =SUM(Game1:Game10!K21) -> 0 | L21: =SUM(Game1:Game10!L21) -> 0 | M21: =SUM(Game1:Game10!M21) -> 0 | N21: 0 | O21: 0 | P21: 0 | Q21: 0 | R21: =SUM(Game1:Game10!R21) -> 0 | S21: 0 | T21: =SUM(Game1:Game10!T21) -> 0
A22: =--SUBTOTAL(3,B$3:B22) -> 15 | B22: =Roster!B22&", "&LEFT(Roster!C22,1) -> Player, U | C22: =SUM(Game1:Game10!C22) -> 0 | D22: 0 | E22: =SUM(Game1:Game10!E22) -> 0 | F22: =SUM(Game1:Game10!F22) -> 0 | G22: =SUM(Game1:Game10!G22) -> 0 | H22: =SUM(Game1:Game10!H22) -> 0 | I22: 0 | J22: =SUM(Game1:Game10!J22) -> 0 | K22: =SUM(Game1:Game10!K22) -> 0 | L22: =SUM(Game1:Game10!L22) -> 0 | M22: =SUM(Game1:Game10!M22) -> 0 | N22: 0 | O22: 0 | P22: 0 | Q22: 0 | R22: =SUM(Game1:Game10!R22) -> 0 | S22: 0 | T22: =SUM(Game1:Game10!T22) -> 0
A23: =--SUBTOTAL(3,B$3:B23) -> 15 | B23: =Roster!B23&", "&LEFT(Roster!C23,1) -> Player, V | C23: =SUM(Game1:Game10!C23) -> 0 | D23: 0 | E23: =SUM(Game1:Game10!E23) -> 0 | F23: =SUM(Game1:Game10!F23) -> 0 | G23: =SUM(Game1:Game10!G23) -> 0 | H23: =SUM(Game1:Game10!H23) -> 0 | I23: 0 | J23: =SUM(Game1:Game10!J23) -> 0 | K23: =SUM(Game1:Game10!K23) -> 0 | L23: =SUM(Game1:Game10!L23) -> 0 | M23: =SUM(Game1:Game10!M23) -> 0 | N23: 0 | O23: 0 | P23: 0 | Q23: 0 | R23: =SUM(Game1:Game10!R23) -> 0 | S23: 0 | T23: =SUM(Game1:Game10!T23) -> 0
A24: =--SUBTOTAL(3,B$3:B24) -> 15 | B24: =Roster!B24&", "&LEFT(Roster!C24,1) -> Player, W | C24: =SUM(Game1:Game10!C24) -> 0 | D24: 0 | E24: =SUM(Game1:Game10!E24) -> 0 | F24: =SUM(Game1:Game10!F24) -> 0 | G24: =SUM(Game1:Game10!G24) -> 0 | H24: =SUM(Game1:Game10!H24) -> 0 | I24: 0 | J24: =SUM(Game1:Game10!J24) -> 0 | K24: =SUM(Game1:Game10!K24) -> 0 | L24: =SUM(Game1:Game10!L24) -> 0 | M24: =SUM(Game1:Game10!M24) -> 0 | N24: 0 | O24: 0 | P24: 0 | Q24: 0 | R24: =SUM(Game1:Game10!R24) -> 0 | S24: 0 | T24: =SUM(Game1:Game10!T24) -> 0
A25: =--SUBTOTAL(3,B$3:B25) -> 15 | B25: =Roster!B25&", "&LEFT(Roster!C25,1) -> Player, X | C25: =SUM(Game1:Game10!C25) -> 0 | D25: 0 | E25: =SUM(Game1:Game10!E25) -> 0 | F25: =SUM(Game1:Game10!F25) -> 0 | G25: =SUM(Game1:Game10!G25) -> 0 | H25: =SUM(Game1:Game10!H25) -> 0 | I25: 0 | J25: =SUM(Game1:Game10!J25) -> 0 | K25: =SUM(Game1:Game10!K25) -> 0 | L25: =SUM(Game1:Game10!L25) -> 0 | M25: =SUM(Game1:Game10!M25) -> 0 | N25: 0 | O25: 0 | P25: 0 | Q25: 0 | R25: =SUM(Game1:Game10!R25) -> 0 | S25: 0 | T25: =SUM(Game1:Game10!T25) -> 0
A26: =--SUBTOTAL(3,B$3:B26) -> 15 | B26: =Roster!B26&", "&LEFT(Roster!C26,1) -> Player, Y | C26: =SUM(Game1:Game10!C26) -> 0 | D26: 0 | E26: =SUM(Game1:Game10!E26) -> 0 | F26: =SUM(Game1:Game10!F26) -> 0 | G26: =SUM(Game1:Game10!G26) -> 0 | H26: =SUM(Game1:Game10!H26) -> 0 | I26: 0 | J26: =SUM(Game1:Game10!J26) -> 0 | K26: =SUM(Game1:Game10!K26) -> 0 | L26: =SUM(Game1:Game10!L26) -> 0 | M26: =SUM(Game1:Game10!M26) -> 0 | N26: 0 | O26: 0 | P26: 0 | Q26: 0 | R26: =SUM(Game1:Game10!R26) -> 0 | S26: 0 | T26: =SUM(Game1:Game10!T26) -> 0
A27: =--SUBTOTAL(3,B$3:B27) -> 15 | B27: =Roster!B27&", "&LEFT(Roster!C27,1) -> Player, Z | C27: =SUM(Game1:Game10!C27) -> 0 | D27: 0 | E27: =SUM(Game1:Game10!E27) -> 0 | F27: =SUM(Game1:Game10!F27) -> 0 | G27: =SUM(Game1:Game10!G27) -> 0 | H27: =SUM(Game1:Game10!H27) -> 0 | I27: 0 | J27: =SUM(Game1:Game10!J27) -> 0 | K27: =SUM(Game1:Game10!K27) -> 0 | L27: =SUM(Game1:Game10!L27) -> 0 | M27: =SUM(Game1:Game10!M27) -> 0 | N27: 0 | O27: 0 | P27: 0 | Q27: 0 | R27: =SUM(Game1:Game10!R27) -> 0 | S27: 0 | T27: =SUM(Game1:Game10!T27) -> 0
B28: ="Min PA to qualify: "&FLOOR(C28*2,0.1) -> Min PA to qualify: 14 | C28: =SUM(Game1:Game10!B28) -> 7 | D28: =SUM(D3:D27) -> 264 | E28: 108 | F28: 32 | G28: 7 | H28: 6 | I28: 153 | J28: 113 | K28: 111 | L28: 27 | M28: 4 | N28: =IF(C28>0,I28/D28,0) -> 0.5795454545 | O28: =IF(C28>0,S28/D28,0) -> 0.821969697 | P28: =IF(C28>0,(I28+L28)/R28,0) -> 0.6060606061 | Q28: =IF(C28>0,O28+P28,0) -> 1.428030303 | R28: =SUM(R3:R27) -> 297 | S28: =SUM(S3:S27) -> 217 | T28: =SUM(T3:T27) -> 6
B29: ="Team Run Avg: "&IF(C28>0,ROUNDUP(SUM(Results!D3:D12)/C28,2),0) -> Team Run Avg: 16.15
B30: ="Opp Run Avg: "&IF(C28>0,ROUNDUP(SUM(Results!E3:E12)/C28,2),0) -> Opp Run Avg: 20.86
